{"text_format":"1","workbook":"xlsx","n_sheets":3,"sheets":["Main","Inspectors","Plants"],"not_rendered":{"charts":0,"images":7,"macros":1,"external_links":0,"defined_names":4,"comments":0,"pivot_tables":0},"unopened":[],"bounds":{"document_bytes":16777216,"sheet_cells":100000,"rows_first":2000,"rows_last":500,"rows_between":2000,"halvings":0,"cell_chars":16384,"cell_head_chars":4096},"cells_cut":0,"cells_raw":0,"read":"whole","date_system":"1900"}

{"sheet":"Main","index":0,"n_rows":90,"n_cols":17,"rows_kept":90,"cut":false,"hidden":false,"merged":[[1,2,1,10],[0,2,0,10],[14,0,14,12],[22,0,22,12],[16,9,16,10],[10,1,10,2],[8,3,8,5],[10,3,10,5],[6,2,6,5],[8,1,8,2],[19,6,19,7],[20,6,20,7],[17,6,17,7],[24,1,25,1],[24,2,24,4],[24,5,24,7],[12,1,12,2],[12,3,12,5],[16,6,16,7],[18,6,18,7],[37,10,37,11],[30,8,30,9],[30,10,30,11],[51,9,51,10],[29,10,29,11],[31,0,31,12],[50,9,50,10],[49,9,49,10],[48,9,48,11],[40,1,40,11],[39,0,39,12],[41,9,41,10],[42,9,42,11],[44,9,44,10],[32,10,32,11],[32,2,32,5],[24,10,25,11],[26,8,26,9],[27,8,27,9],[28,8,28,9],[24,8,25,9],[26,10,26,11],[27,10,27,11],[28,10,28,11],[27,5,27,7],[25,2,25,4],[25,5,25,7],[26,2,26,4],[27,2,27,4],[26,5,26,7],[45,16,45,17],[47,1,47,11],[56,5,56,6],[57,5,57,6],[54,5,54,6],[55,5,55,6],[50,5,50,6],[51,5,51,6],[45,9,45,12],[49,5,49,6],[48,1,48,8],[53,9,53,10],[65,4,65,11],[66,4,66,11],[52,5,52,6],[53,5,53,6],[55,9,55,10],[52,9,52,10],[54,9,54,10],[59,9,59,10],[60,9,60,10],[56,9,56,10],[57,9,57,10],[58,9,58,10],[29,8,29,9],[28,2,28,4],[29,2,29,4],[30,2,30,4],[30,5,30,7],[28,5,28,7],[29,5,29,7]]}
[null,null,"ASPHALT ROADWAY REPORT"]
[null,null,"Version 3.00 --- Revision Date 10/12/2022"]
[null,"ORGCODE",null,null,null,null,null,null,null,null,"REPORT NO"]
[]
[null,"CONTRACT",null,null,"     PROJECT",null,null,"ROUTE",null,null,"MIX ID"]
[]
[null,"PLANT",null,null,null,null,null,"TONS REC'D",null,null,"DATE"]
[null,null,null,null,null,null,null,null,null,null,null,null,null,null,"FOLDER ON C:\\"]
[null,"ROADWAY INSPECTOR",null,null,null,null,null,"USER ID",{"$f":"IFERROR(VLOOKUP(D9,Inspector_Info,2,FALSE),0)","v":0},null,"PHONE #"]
[]
[null,"PLANT INSPECTOR",null,null,null,null,null,"USER ID",{"$f":"IFERROR(VLOOKUP(D11,Inspector_Info,2,FALSE),0)","v":0},null,"PHONE #"]
[]
[null,"RESIDENT ENGINEER",null,null,null,null,null,"USER ID",{"$f":"IFERROR(VLOOKUP(D13,Inspector_Info,2,FALSE),0)","v":0},null,"PHONE #"]
[]
["PAID QUANTITIES"]
[]
[null,null,null,null,"LINE NO","MIX","TONS",null,"SQ. YDS"]
[null,null,null,null,null,{"$f":"IF(E18=\"\",\"\",L5)","v":""},null,null,null,null,null,null,null,null,"IMPORTANT NOTES:"]
[null,null,null,null,null,{"$f":"IF(E19=\"\",\"\",L5)","v":""}]
[null,null,null,null,null,{"$f":"IF(E20=\"\",\"\",L5)","v":""},null,null,null,null,null,null,null,null,"A copy of this report should be furnished to"]
[null,null,null,null,null,{"$f":"IF(E21=\"\",\"\",L5)","v":""},null,null,null,null,null,null,null,null,"the contractor daily."]
[]
["COVERAGE INFORMATION",null,null,null,null,null,null,null,null,null,null,null,null,null,"This report, marked FINAL, shall be archived"]
[]
[null,"LINE NO","BEGIN",null,null,"END",null,null,"WIDTH",null,"DEPTH",null,null,null,"in eprojects."]
[null,null,"STATION or MILE MARKER",null,null,"STATION or MILE MARKER"]
[null,null,null,null,null,null,null,null,null,null,null,null,null,null,"Updating Inspectors will break this sheet if"]
[null,null,null,null,null,null,null,null,null,null,null,null,null,null,"using a version older than 2.0."]
[]
[]
[]
["TACK INFORMATION"]
[null,"TACK TYPE",null,null,null,null,null,"QTY TO DATE   (gallons)"]
[]
[null,"BEGIN QTY",null,null,"END QTY",null,null,"QTY USED",{"$f":"C35-F35","v":0}]
[null,"(gallons)",null,null,"(gallons)",null,null,"(gallons)"]
[]
[null,"TACK TEMP",null,null,"DILUTION",null,null,"QUANTITY TO BE PAID",null,null,{"$f":"MROUND(Q46, 1)","v":0},null,null,null,"If QUANTITY TO BE PAID displays"]
[null,"(°F)",null,null,"(% water)",null,null,"(pay to nearest  gallon)",null,null,null,null,null,null,"\"#NAME?\" click this button"]
["VERIFICATION OF DISTRIBUTOR APPLICATION RATE"]
[null,"(To be performed, at a minimum, on the first day of paving)"]
[null,"QTY USED",{"$f":"Q46","v":0},null,"METER RATE",null,null,"DISTANCE",null,"  SPRAY WIDTH"]
[null,"(corrected gallons)",null,null,"(truck setting, gal/sy)",null,null,"(mile)",null,"  (Width of spray pattern, ft)"]
[]
[null,"QTYtheor",{"$f":"(F42*(1-((C38-60)*0.0003)))*(((I42*5280)/3)*(L42/3))","v":0},null,"CAL RATE",{"$f":"C42/(((I42*5280)/3)*(L42/3))","v":{"$error":"#DIV/0!"}},null,"TARGET RATE",null,"     % of QTYtheor",null,{"$f":"C42/C45","v":{"$error":"#DIV/0!"}}]
[null,"(Theoretical Quantity, gal)",null,null,"(Calculated Rate, gal/sy)",null,null,"(gal/sy)",null,"    (If < 87% then Re-calibrate truck)",null,null,null,null,null,null,{"$f":"IF(F38=0,I35/O51,(I35/O51)*(1-F38))","v":0}]
[]
[null,"DENSITY SAMPLES"]
[null,"(To be completed by Roadway Inspector)",null,null,null,null,null,null,null,"(Completed by Plant Inspector)",null,null,null,null,{"$f":"C38-60","v":-60}]
[null,"LINE NO","CORE #","TYPE *","SERIAL NUMBER","THICKNESS",null,"OFFSET","STATION","COMPACTION",null,"THICKNESS",null,null,{"$f":"O49*0.0003","v":-1.7999999999999999E-2}]
[null,null,null,null,null,null,null,null,null,null,null,null,null,null,{"$f":"1+O50","v":0.98199999999999998}]
[]
[]
[]
[]
[]
[]
[]
[null," * QC, QA, or Joint",null,null,null,null,null,null,null,"VIRGIN A.C."]
[null,"Note:  For QA cores cut from a BB or BP mix, 4 cores = 1 sample.  There is no pay for QC cores.",null,null,null,null,null,null,null,"A P I R"]
[]
[]
[]
[null,"DATE CUT",null,null,"TIME CUT",null,null,"(time last core cut)"]
[]
[null,"ADDITIONAL INFORMATION:"]
[]
[]
[null,"C214 - Asphalt Roadway Report (Rev. 01.06.17)"]
[]
[]
[]
[]
[]
[]
[]
[]
[]
[]
[null,null,null,null,null,null,null,null,null,null,null,null,null,null,null,"District",{"$f":"MID(C5,8,1)","v":""}]
[]
[]
[null,null,null,null,null,null,null,null,null,null,null,null,null,null,null,"J:\\Asphalt Roadway Reports"]
[null,null,null,null,null,null,null,null,null,null,null,null,null,null,null,{"$f":"\"C:\\\"&O9","v":"C:\\"}]
[]
[null,null,null,null,null,null,null,null,null,null,null,null,null,null,null,"Header Information"]
[null,null,null,null,null,null,null,null,null,null,null,null,null,null,null,"Contract",{"$f":"UPPER(C5)","v":""}]
[null,null,null,null,null,null,null,null,null,null,null,null,null,null,null,"Job",{"$f":"UPPER(F5)","v":""}]
[]
[null,null,null,null,null,null,null,null,null,null,null,null,null,null,null,"Mix ID",{"$f":"UPPER(L5)","v":""}]

{"sheet":"Inspectors","index":1,"n_rows":607,"n_cols":5,"rows_kept":607,"cut":false,"hidden":false,"merged":[]}
[]
["User Name","User ID"]
[]
["D00 - No Plant Inspector","xxxxx",{"$f":"A4","v":"D00 - No Plant Inspector"},"D00"]
["CD - Abbott Eric","abbote1","CD","E1A","eric.abbott@modot.mo.gov"]
["CD - Ackert Timothy","ackert1","CD","TCA","Timothy.Ackert@modot.mo.gov"]
["CD - Ahlbom Chandler","ahlboc1","CD","ARC","chandler.ahlbom@modot.mo.gov"]
["CD - Aulbur Randall","aulbur1","CD","REA","Randall.Aulbur@modot.mo.gov"]
["CD - Bashore Adam","bashoa1","CD","A2B","adam.bashore@modot.mo.gov"]
["CD - Bax Carson","baxc1","CD","C3B","carson.bax@modot.mo.gov"]
["CD - Beck Connor","beckc2","CD","CJB","connor.beck@modot.mo.gov"]
["CD - Bertels Andrew","bertea1","CD","ASB","andrew.bertels@modot.mo.gov"]
["CD - Blackburn Shane","blacks","CD","S2B","shane.blackburn@modot.mo.gov"]
["CD - Bowman Andrew","bowmaa1","CD","AJB","andrew.bowman@modot.mo.gov"]
["CD - Breeding Scott","breeds","CD","SWB","scott.breeding@modot.mo.gov"]
["CD - Brownell Sidney","browns1","CD","SCB","Sidney.Brownell@modot.mo.gov"]
["CD - Burton Corey","burtoc4","CD","C1B","corey.burton@modot.mo.gov"]
["CD - Cora Marion","coram","CD","MSC","marion.cora@modot.mo.gov"]
["CD - Davis Garrett","davisg7","CD","G1D","Garrett.Davis@modot.mo.gov"]
["CD - Ellis Todd","ellist2","CD","T2E","todd.ellis@modot.mo.gov"]
["CD - Fenech Jane","fenecj1","CD","JDF","Jane.Fenech@modot.mo.gov"]
["CD - Frierdich Josef","frierj1","CD","J3F","josef.frierdich@modot.mo.gov"]
["CD - Gabel Jeffrey","gabelj3","CD","JSG","jeffrey.gabel@modot.mo.gov"]
["CD - Gander Jeffrey","gandej","CD","JLG","Jeffery.Gander@modot.mo.gov"]
["CD - Garstang William","garstw1","CD","WDG","William.Garstang@modot.mo.gov"]
["CD - Godsy Misty","godsym1","CD","MMG","misty.godsy@modot.mo.gov"]
["CD - Graessle Jacob","graesj1","CD","J8G","jacob.graessle@modot.mo.gov"]
["CD - Graham Christopher","grahac1","CD","CAG","christopher.graham@modot.mo.gov"]
["CD - Hake James","hakej1","CD","JCH","james.hake@modot.mo.gov"]
["CD - Haller Jennifer","hallej1","CD","JNH","jennifer.haller@modot.mo.gov"]
["CD - Henson Robert","hensor","CD","RWH","robert.henson@modot.mo.gov"]
["CD - Honse Zach","honsez1","CD","ZQH","zachary.honse@modot.mo.gov"]
["CD - Jasper James","jaspej1","CD","JLJ","james.jasper@modot.mo.gov"]
["CD - Kempker Landre","kempkl2","CD","LJK","landre.kempker@modot.mo.gov"]
["CD - Knott Austin","knotta1","CD","APK","austin.knott@modot.mo.gov"]
["CD - LaFave Aaron","lafava1","CD","AJL","aaron.lafave@modot.mo.gov"]
["CD - Laffoon Sam","laffos1","CD","SJL","sam.laffoon@modot.mo.gov"]
["CD - Lepper Derek","lepped1","CD","DFL","derek.lepper@modot.mo.gov"]
["CD - Link Dylan","linkd1","CD","DCL","dylan.link@modot.mo.gov"]
["CD - Maddox Hubert","maddoh","CD","HRM","hubert.maddox@modot.mo.gov"]
["CD - Mallon Serenity","mallos1","CD","SEM","serenity.mallon@modot.mo.gov"]
["CD - Malone Matthew","malonm","CD","MBM","matthew.malone@modot.mo.gov"]
["CD - Marzuco Anthony","marzua1","CD","ACM","anthony.marzuco@modot.mo.gov"]
["CD - McPeters Westly","mcpetw1","CD","WPM","westly.mcpeters@modot.mo.gov"]
["CD - Mcginnis Dave","mcgind1","CD","DMM","dave.mcginnis@modot.mo.gov"]
["CD - Milbradt Zachary","milbrz1","CD","ZTM","Zachary.Milbradt@modot.mo.gov"]
["CD - Morgan Terry","morgat","CD","TMM","terry.morgan@modot.mo.gov"]
["CD - Mottaz Brian","mottab1","CD","BFM","brian.mottaz@modot.mo.gov"]
["CD - Munck Kirsten","munckk","CD","KAM","Kirsten.Munck@modot.mo.gov"]
["CD - Nelson Justin","nelsoj3","CD","JEN","justin.nelson@modot.mo.gov"]
["CD - Niemeyer Jeffrey","niemej1","CD","JGN","jeffrey.niemeyer@modot.mo.gov"]
["CD - Powers Thomas","powert2","CD","TMP","thomas.powers@modot.mo.gov"]
["CD - Procter David","proctd1","CD","DSP","david.procter@modot.mo.gov"]
["CD - Pryor Wendy","pryorw1","CD","WJP","wendy.pryor@modot.mo.gov"]
["CD - Rennick Craig","rennic","CD","CER","craig.rennick@modot.mo.gov"]
["CD - Robertson Chad","roberc5","CD","CJR","Chad.Robertson@modot.mo.gov"]
["CD - Schaumburg Andrew","schaua1","CD","A1S","Andrew.Schaumburg@modot.mo.gov"]
["CD - Schulte Joe","schulj","CD","JBS","joseph.schulte@modot.mo.gov"]
["CD - Schupp Michael","schupm","CD","MJS","michael.schupp@modot.mo.gov"]
["CD - Shanks Brandon","shankb1","CD","B3S","brandon.shanks@modot.mo.gov"]
["CD - Siebeneck Todd","siebet","CD","TMS","todd.siebeneck@modot.mo.gov"]
["CD - Smith Tonya","smithtd","CD","T1S","tonya.smith@modot.mo.gov"]
["CD - Snelling Scott","snells1","CD","SLS","scott.snelling@modot.mo.gov"]
["CD - Stokes Zakary","stokez1","CD","ZPS","zakary.stokes@modot.mo.gov"]
["CD - Straw Tristan","strawt1","CD","T5S","Tristan.Straw@modot.mo.gov"]
["CD - Thomas Douglas","thomad","CD","DRT","Douglas.Thomas@modot.mo.gov"]
["CD - Thompson Marshall","thompm2","CD","MST","marshall.thompson@modot.mo.gov"]
["CD - Thompson Phillip","thompp1","CD","PRT","phillip.thompson@modot.mo.gov"]
["CD - Veasman Shadd","veasms1","CD","SVN","shadd.veasman@modot.mo.gov"]
["CD - Weaver Daniel","weaved1","CD","DDW","daniel.weaver@modot.mo.gov"]
["CD - Weber Shawn","webers1","CD","SMW","Shawn.Weber@modot.mo.gov"]
["CD - Wood Stephen","woods6","CD","S1W","stephen.wood2@modot.mo.gov"]
["CD - Zuroweste Janet","zurowj1","CD","JEZ","janet.zuroweste@modot.mo.gov"]
["CD - adams Shaire","adamss7","CD","SLF","shaire.fischer@modot.mo.gov"]
["CO - Bauer Chris","bauerc1","CO","CAB","chris.bauer@modot.mo.gov"]
["CO - Bennett Todd","Bennet","CO","TLB","todd.bennett@modot.mo.gov"]
["CO - Blalock R9B Randy","blalor2","CO","R9B","randy.blalock@modot.mo.gov"]
["CO - Blomberg Jason","blombj","CO","J5B","jason.blomberg@modot.mo.gov"]
["CO - Brooks Larry","brookl","CO","LRB","lawrence.brooks@modot.mo.gov"]
["CO - Brownell Lydia","brownl1","CO","LBB","lydia.brownell@modot.mo.gov"]
["CO - Calvert Garrett","calveg1","CO","GJC","garrett.calvert@modot.mo.gov"]
["CO - Donahue John","donahj","CO","J3D","John.Donahue@modot.mo.gov"]
["CO - Evers Bethany","eversb1","CO","BAE","bethany.evers@modot.mo.gov"]
["CO - Foster Leonard","fostel","CO","LDF","Leonard.Foster@modot.mo.gov"]
["CO - Franke Dean","frankd","CO","D2F","dean.franke@modot.mo.gov"]
["CO - Gartner Sarah","gartns1","CO","SRG","sarah.gartner@modot.mo.gov"]
["CO - Greer Lori","greerl2","CO","LLG","Lori.Greer@modot.mo.gov"]
["CO - Joens Jeff","joensj","CO","JSJ","jeffery.joens@modot.mo.gov"]
["CO - John Reichart Francis","reichf","CO","FJR","francis.reichart@modot.mo.gov"]
["CO - Kraus Jennifer","krausj1","CO","JLK","jennifer.kraus@modot.mo.gov"]
["CO - Kroner Jeffery","kronej1","CO","JWK","jeffery.kroner@modot.mo.gov"]
["CO - Lamberson Julie","lambej2","CO","J2W","julie.lamberson@modot.mo.gov"]
["CO - Libbert Trevor","libbet1","CO","TLL","trevor.libbert@modot.mo.gov"]
["CO - Mackey Rebecca","macker","CO","R4M","rebecca.mackey@modot.mo.gov"]
["CO - Marshall Robert","marshr","CO","RSM","robert.marshall@modot.mo.gov"]
["CO - Nelson Kent","nelsok2","CO","KWN","kent.nelson@modot.mo.gov"]
["CO - Oesch Daniel","oeschd1","CO","DJO","daniel.oesch@modot.mo.gov"]
["CO - Roegge Diane","roeggd","CO","D1R","diane.roegge@modot.mo.gov"]
["CO - Schulte Brent","schulb1","CO","BTS","brent.schulte@modot.mo.gov"]
["CO - Scott Brenna","scottb5","CO","BNS","brenna.scott@modot.mo.gov"]
["CO - Scott Nicole","scottn1","CO","NAS","nicole.scott@modot.mo.gov"]
["CO - Sidebottom Mark","sidebm1","CO","M2S","mark.sidebottom@modot.mo.gov"]
["CO - Taylor Timothy","taylot3","CO","TKT","Timothy.Taylor2@modot.mo.gov"]
["CO - Vader Leonard","vaderl","CO","LAV","leonard.vader@modot.mo.gov"]
["CO - Varner Jonathan","varnej1","CO","J1V","Jonathan.Varner@modot.mo.gov"]
["CO - Villanueva-Kaeo Kaupena (KJ)","villak1","CO","KVK"]
["CO - Whelan Madalyn","whelam1","CO","MEW","Madalyn.Whelan@modot.mo.gov"]
["KC - Al-Khaldi Nidal","alkhan1","KC","NAA","nidal.alkhaldi@modot.mo.gov"]
["KC - Albin Justin","albinj1","KC","JLA","Justin.Albin@modot.mo.gov"]
["KC - Allred Daniel","allred1","KC","DDA","Daniel.Allred@modot.mo.gov"]
["KC - Baiamonte Frank","baiamf1","KC","BAF","frank.baiamonte@modot.mo.gov"]
["KC - Baker Clinton","bakerc8","KC","C1B","Clinton.Baker@modot.mo.gov"]
["KC - Baldwin Chad","baldwc2","KC","CEB","chad.baldwin@modot.mo.gov"]
["KC - Bloomfield Steven","blooms1","KC","S4B","Steven.Bloomfield@modot.mo.gov"]
["KC - Brefo Stephen","brefos1","KC","S3B","Stephen.Brefo@modot.mo.gov"]
["KC - Brown David","brownd7","KC","D9B","David.Brown2@modot.mo.gov"]
["KC - Bruss Eric","brusse2","KC","EGB","Eric.Bruss@modot.mo.gov"]
["KC - Burns Harlan","burnsh1","KC","HJB","Harlan.Burns@modot.mo.gov"]
["KC - Burroughs Mark","burrom1","KC","MRB","Mark.Burroughs@modot.mo.gov"]
["KC - Butler Bradley","butleb4","KC","B9B","bbutler@GarverUSA.com"]
["KC - Caiharr Joseph","caihaj1","KC","J1C","Joseph.Caiharr@modot.mo.gov"]
["KC - Carey Samuel","careys1","KC","SMC","samuel.carey@modot.mo.gov"]
["KC - Casey John","caseyj","KC","JWC","John.Casey@modot.mo.gov"]
["KC - Copeland Gregory","copelg1","KC","GRC","Gregory.Copeland@modot.mo.gov"]
["KC - Corey Justin","coreyj1","KC","JGC","justin.corey@modot.mo.gov"]
["KC - Covington Karlee","covink1","KC","KAB","KARLEE.COVINGTON@MODOT.MO.GOV"]
["KC - Cracraft Brandon","cracrb1","KC","B1C"," Brandon.Cracraft@modot.mo.gov"]
["KC - Daniel Brandon","danieb1","KC","BDD","Brandon.Daniel@modot.mo.gov"]
["KC - DeGroat William","degrow1","KC","WLD","william.degroat@modot.mo.gov"]
["KC - Domingo Sean","domins1","KC","SMD","Sean.Domingo@modot.mo.gov"]
["KC - Drake Heather","drakeh1","KC","HDD"," heather.drake@modot.mo.gov"]
["KC - Fager Glenn","fagerg1","KC","GAF","glenn.fager@bartwest.com"]
["KC - Forsyth Harrison","forsyh1","KC","HAF","harrison.forsythe@modot.mo.gov"]
["KC - Frizzell Mike","frizzm","KC","MWF","Michael.Frizzell@modot.mo.gov"]
["KC - George Alex","GEORGA1","KC","A1G","Alex.George@modot.mo.gov"]
["KC - Gray William","grayw1","KC","WTG","William.Gray@modot.mo.gov"]
["KC - Grimes Cheryl","grimec","KC","CMG","Cheryl.Grimes@modot.mo.gov"]
["KC - Hargrave Robert","hargrr","KC","RJH","Robert.Hargrave@modot.mo.gov"]
["KC - Hathaway Kurtis","hathak1","KC","KKH","Kurtis.Hathaway@modot.mo.gov"]
["KC - Hazlett Timothy","hazlet1","KC","T2H","timothy.hazlett@modot.mo.gov"]
["KC - Heckman Ryan","heckmr1","KC","R1H","Ryan.Heckman@modot.mo.gov"]
["KC - Hessenflow Chad","hessec2","KC","C3H","Chad.Hessenflow@modot.mo.gov"]
["KC - Hoyt Dustin","hoytd1","KC","DRH"," Dustin.Hoyt@modot.mo.gov"]
["KC - Iles Brian","ilesb1","KC","BKI","Brian.Iles@modot.mo.gov"]
["KC - James Christopher","jamesc2","KC","C2J","Christopher.James2@modot.mo.gov"]
["KC - Janssens Albert","janssa","KC","ALJ","Albert.Janssens@modot.mo.gov"]
["KC - Jefferson Jamie","jeffej1","KC","JMJ","jamie.jefferson@modot.mo.gov"]
["KC - Johnston Sonya","johnsse","KC","SAJ","sonya.johnston@modot.mo.gov"]
["KC - Karlin Christopher","karlic1","KC","CJK","christopher.karlin@modot.mo.gov"]
["KC - Kennell Christopher","kennec2","KC","C1K","Christopher.Kennell@modot.mo.gov"]
["KC - Kinney Matt","kinnem1","KC","M2K","Matt.Kinney@modot.mo.gov"]
["KC - Kneib Ryan","kneibr1","KC","RMK","Ryan.Kneib@modot.mo.gov"]
["KC - Kraemer Kataryna","kraemk1","KC","KCK","Kataryna.Kraemer@modot.mo.gov"]
["KC - Lariosa Earle","larioe1","KC","EJL","Earle.Lariosa@modot.mo.gov"]
["KC - Layman Rodney","laymar","KC","RCL","Rodney.Layman@modot.mo.gov"]
["KC - Lohsandt Jim","lohsaj","KC","JRL","James.Lohsandt@modot.mo.gov"]
["KC - Londre Tristan","londrt1","KC","TGL","Tristan.Londre@modot.mo.gov"]
["KC - Malon Donna","malond2","KC","DJM","donna.malon@modot.mo.gov"]
["KC - Malone Shana","malons2","KC","SRM","shana.malone@modot.mo.gov"]
["KC - Marshall Patrick","marshp4","KC","PEM","Patrick.Marshall1@modot.mo.gov"]
["KC - Martin Glenn","martig2","KC","GRM","GLENN.MARTIN@modot.mo.gov"]
["KC - Martinez Robert","martir7","KC","RPM","robert.martinez@modot.mo.gov"]
["KC - Matthews Todd","mattht","KC","TWM","Todd.Matthews@modot.mo.gov"]
["KC - McCLoud Nathaniel","mcclon1","KC","NPM","nathaniel.mccloud@modot.mo.gov"]
["KC - Merriman Mellissa","merrim1","KC","MMM","melissa.merriman@modot.mo.gov"]
["KC - Moore Johnny","moorej3","KC","JSM"," Johnny.Moore@modot.mo.gov"]
["KC - Mothersbaugh Eric","mothee","KC","ELM","Eric.Mothersbaugh@modot.mo.gov"]
["KC - Murphy Gregory","murphg1","KC","GMM","gregory.murphy@modot.mo.gov"]
["KC - Needham McKeegan","needhm1","KC","MCN","mckeegan.needham@modot.mo.gov"]
["KC - Ngugi Simon","ngugis1","KC","SKN"," Simon.Ngugi@modot.mo.gov  Phone"]
["KC - Persinger Clark","persic1","KC","CDP","clark.persinger@modot.mo.gov"]
["KC - Pflum James","pflumj1","KC","JJP","James.Pflum@modot.mo.gov"]
["KC - Present Jacob","presej1","KC","JBP","jacob.present@modot.mo.gov"]
["KC - Raybourn Lisa","raybol1","KC","L1R","Lisa.Raybourn@modot.mo.gov"]
["KC - Reilly Sean","reills1","KC","S1R","sean.reilly@modot.mo.gov"]
["KC - Riley Reid","rileyr1","KC","RNR","reid.riley@modot.mo.gov"]
["KC - Sandifer Steven","sandis1","KC","SRS","steven.sandifer@modot.mo.gov"]
["KC - Scarpitta Michael","scarpm1","KC","M3S","Michael.Scarpitta@modot.mo.gov"]
["KC - Schreckler Trent","schret1","KC","T4S","trent.schreckler@modot.mo.gov"]
["KC - Schwaller James","schwaj2","KC","JXS","james.schwaller@modot.mo.gov"]
["KC - Sims Timothy","simst","KC","TES","Timothy.Sims@modot.mo.gov"]
["KC - Skyrme Megan","skyrmm1","KC","MAS","Megan.Skyrme@modot.mo.gov"]
["KC - Smith Alexander","smitha9","KC","ADS","Alexander.Smith@modot.mo.gov"]
["KC - Sprigg John","sprigj","KC","JPS","John.Sprigg@modot.mo.gov"]
["KC - Stegner Barbara","stegnb1","KC","B1S","Barbara.Stegner@modot.mo.gov"]
["KC - Stine Matthew","stinem1","KC","M1S","Matthew.Stine@modot.mo.gov"]
["KC - Street Bradley","streeb3","KC","BDS","bdstreet@GarverUSA.com"]
["KC - Terrell Jason","terrej1","KC","JAT","jason.terrell@modot.mo.gov"]
["KC - Walker Zachary","walkez1","KC","ZSW","Zachary.Walker@modot.mo.gov"]
["KC - Ware Ronald","warer1","KC","RDW","ronald.ware@modot.mo.gov"]
["KC - Warren Michael","warrem1","KC","MSW","Michael.Warren@modot.mo.gov"]
["KC - Watson Brady","watsob1","KC","BMW","Brady.Watson@modot.mo.gov"]
["KC - Weatherby Connor","weathc1","KC","CBW","connor.weatherby@modot.mo.gov"]
["KC - Weaver William","weavew1","KC","W1W","William.Weaver@modot.mo.gov"]
["KC - Wells Aliyah","wellsa1","KC","A1W","aliyah.wells@modot.mo.gov"]
["KC - Wilson Rebecca","wilsor2","KC","RNW","rebecca.wilson@modot.mo.gov"]
["KC - Woodward Joel","woodwj1","KC","JSW","Joel.Woodward@modot.mo.gov"]
["KC - Woody Blake","woodyb2","KC","BTW","blake.woody@modot.mo.gov"]
["KC - Yost Jared","yostj1","KC","JCY","Jared.Yost@modot.mo.gov"]
["NE - Baldwin Brandi","baldwb3","NE","BJK","brandi.baldwin@modot.mo.gov"]
["NE - Baxter Michael","baxtem1","NE","MEB","Michael.Baxter@modot.mo.gov"]
["NE - Buck John","buckj","NE","JSB","John.Buck@modot.mo.gov"]
["NE - Carnes Phillip","carnep1","NE","PAC","phillip.carnes@modot.mo.gov"]
["NE - Dieterich Grayson","dieteg1","NE","GKD","grayson.dieterich@modot.mo.gov"]
["NE - Dunlap Eric","dunlae1","NE","EWD","Eric.Dunlap@modot.mo.gov"]
["NE - Dwight Justin","dwighj1","NE","JBD","Justin.Dwight@modot.mo.gov"]
["NE - Edgar Emily","edgare1","NE","EAH","emily.edgar@modot.mo.gov"]
["NE - Flynn Steven","flynns1","NE","SRF","Steven.Flynn@modot.mo.gov"]
["NE - Ford Clinton","fordc","NE","CDF","clinton.ford@modot.mo.gov"]
["NE - Fox Dan","foxd","NE","DMF","Dan.Fox@modot.mo.gov"]
["NE - Gard Brian","gardb1","NE","BRG","Brian.Gard@modot.mo.gov"]
["NE - Haggard Joseph","haggaj1","NE","JHH","Joseph.Haggard@modot.mo.gov"]
["NE - Halley Tyler","hallet1","NE","T3H","tyler.halley@modot.mo.gov"]
["NE - Hays Timothy","hayst","NE","TAH","Timothy.Hays@modot.mo.gov"]
["NE - Howard Carla","howarc","NE","CJH","Carla.Howard@modot.mo.gov"]
["NE - Keen Lincoln","keenl","NE","LWK","Lincoln.Keen@modot.mo.gov"]
["NE - Liebhart David","liebhd","NE","DJL","David.Liebhart@modot.mo.gov"]
["NE - Lincoln Martin","lincom","NE","MDL","Martin.Lincoln@modot.mo.gov"]
["NE - Martens Rochelle","marter1","NE","RAM","Rochelle.Martens@modot.mo.gov"]
["NE - McClain Britt","mcclab","NE","BSM","Britt.McClain@modot.mo.gov"]
["NE - McGartland Kevin","mcgark","NE","KGM","Kevin.McGartland@modot.mo.gov"]
["NE - Middleton Nicholas","middln","NE","NTM","Nicholas.Middleton@modot.mo.gov"]
["NE - O'derio Jason","orderij1","NE","JMO","jason.o'derio@modot.mo.gov"]
["NE - Owen Thomas","owent1","NE","TWO","Thomas.Owen@modot.mo.gov"]
["NE - Peterson Christopher","peterc6","NE","CIP","Christopher.Peterson@modot.mo.gov"]
["NE - Powers Matthew","powerm1","NE","MEP","Matthew.Powers@modot.mo.gov"]
["NE - Rodenbaugh Macy","rodenm","NE","MJR","Macy.Rodenbaugh@modot.mo.gov"]
["NE - Sandifer Philip","sandip","NE","PES","Philip.Sandifer@modot.mo.gov"]
["NE - Shepherd Kayla","shephk1","NE","KMS","Kayla.Shepherd@modot.mo.gov"]
["NE - Shrum Tom","shrumt1","NE","TWS","Tom.Shrum@modot.mo.gov"]
["NE - Smith Joseph","smithjl","NE","J4S","joseph.smith@modot.mo.gov"]
["NE - Stewart Jeff","stewaj1","NE","J8S","jeff.stewart@modot.mo.gov"]
["NE - Sutton Cole","suttoc2","NE","CJS","Cole.Sutton@modot.mo.gov"]
["NE - Terrell Joseph","terrej2","NE","JPT","joseph.terrell@modot.mo.gov"]
["NE - Thudium Tommy","thudit1","NE","TLT","tommy.thudium@modot.mo.gov"]
["NE - Viers Shane","vierss","NE","SIV","Shane.Viers@modot.mo.gov"]
["NE - Wilson Duston","wilsod2","NE","DWW","Duston.Wilson@modot.mo.gov"]
["NE - Worthington Kent","worthk","NE","K4W","Kent.Worthington@modot.mo.gov"]
["NE - Youngblood Ranie","youngr6","NE","RMY","Ranie.Gilmore@modot.mo.gov"]
["NW - Anderson Lynn","anderl1","NW","LMA","lynn.anderson@modot.mo.gov"]
["NW - Becerra James","becerj","NW","J3B","james.becerra@modot.mo.gov"]
["NW - Bennett Alan","bennea2","NW","ALB","Alan.Bennett@modot.mo.gov"]
["NW - Bozarth Jared","bozarj1","NW","J2B","jared.bozarth@modot.mo.gov"]
["NW - Brobst Ryan","brobsr1","NW","R7B","ryan.brobst@modot.mo.gov"]
["NW - Burns Jeremy","burnsj6","NW","JPB","jeremy.burns@modot.mo.gov"]
["NW - Burns Jessica","burnsj3","NW","J1B","jessica.burns@modot.mo.gov"]
["NW - Campbell David","campbd3","NW","DAC","david.campbell@modot.mo.gov"]
["NW - Claypool Tyeson","claypt2","NW","TNC","Tyeson.Claypool@modot.mo.gov"]
["NW - Davidson Bret","davidb","NW","BED","bret.davidson@modot.mo.gov"]
["NW - Dennis Jeffrey","dennij1","NW","JJD","jeffrey.dennis@modot.mo.gov"]
["NW - Drowns Matthew","drownm1","NW","MLD","matthew.drowns@modot.mo.gov"]
["NW - Elmore Craig","elmorc1","NW","CAE","Craig.Elmore@modot.mo.gov"]
["NW - Evans Austin","evansa2","NW","AJE","austin.evans@modot.mo.gov"]
["NW - Flora Janique","floraj1","NW","JMF","janique.flora@modot.mo.gov"]
["NW - Frandson Taylor","frandt1","NW","TCF","taylor.frandson@modot.mo.gov"]
["NW - Fuson Mary","fusonm1","NW","MMF","mary.fuson@modot.mo.gov"]
["NW - Giffin Philip","giffip1","NW","PEG","Philip.Giffin@modot.mo.gov"]
["NW - Gillespie James","gillej","NW","JRG","james.gillespie@modot.mo.gov"]
["NW - Hart Gary","hartg1","NW","GDH","gary.hart@modot.mo.gov"]
["NW - Hartman Heath","hartmh","NW","HEH","heath.hartman@modot.mo.gov"]
["NW - Hibler Austin","hiblea1","NW","ADH","austin.hibler@modot.mo.gov"]
["NW - Hunt Brian","huntb1","NW","BLH","Brian.Hunt@modot.mo.gov"]
["NW - King Nathan","kingn1","NW","NGK","nathan.king@modot.mo.gov"]
["NW - Lund Trey","lundt1","NW","TBL","Trey.Lund@modot.mo.gov"]
["NW - Marriott Michael","marrim2","NW","MWM","michael.marriott@modot.mo.gov"]
["NW - Meneely Tammy","meneet","NW","TKM","tammy.meneely@modot.mo.gov"]
["NW - Meyers Jacob","meyerj8","NW","JQM","jacob.meyers@modot.mo.gov"]
["NW - Miller James","milleje","NW","J7M","James.Miller@modot.mo.gov"]
["NW - Orr Richard","orrr1","NW","RWO","richard.orr@modot.mo.gov"]
["NW - Perkins Melvin (Lee)","perkim2","NW","MLP","M.Lee.Perkins@modot.mo.gov"]
["NW - Powell Michael","powelm3","NW","MDP","michael.powell@modot.mo.gov"]
["NW - Rosenthal Brian","rosenb1","NW","b2r","brian.rosenthal@modot.mo.gov"]
["NW - Russell Lucas","russel2","NW","L2R","Lucas.Russell@modot.mo.gov"]
["NW - Skipper Justin","skippj1","NW","JLS","justin.skipper@modot.mo.gov"]
["NW - Strong Krista","stronk1","NW","KLS","krista.strong@modot.mo.gov"]
["NW - Summers Charles","summec1","NW","CCS","charles.summers@modot.mo.gov"]
["NW - Thurman Brandon","thurmb2","NW","BWT","brandon.thurman@modot.mo.gov"]
["NW - Veer Jerry","veerj1","NW","JLV","Jerry.Veer@modot.mo.gov"]
["NW - Wagner Joseph","wagnej7","NW","JCW","joseph.wagner@modot.mo.gov"]
["NW - White Jason","whitej","NW","JDW","jason.white@modot.mo.gov"]
["NW - Zona Timothy","zonat1","NW","TRZ","tim.zona@modot.mo.gov"]
["OS - Buzzetta Amanda","buzzea1","OS","AEB","abuzzetta@gonzalezcos.com"]
["OS - Dotson Kirk","dotsok1","OS","KAD","Kirk.Dotson@modot.mo.gov"]
["OS - Glass Derek","glassd1","OS","DJG","Derek.Glass@modot.mo.gov"]
["OS - Harper Logan","harpel1","OS","LCH","Logan.Harper@modot.mo.gov"]
["OS - Kroeger Mitchell","kroegm1","OS","M1K","Mitchell.Kroeger@modot.mo.gov"]
["OS - McCollum James","mccolj3","OS","JMM","JMMcCollum@GarverUSA.com"]
["OS - Waite Patrick","waitep3","OS","PMW","PMWaite@GarverUSA.com"]
["OS - Washausen Jeffrey","washaj1","OS","J1W","jwashausen@gonzalezcos.com"]
["SE - Barnfield Chris","barnfc1","SE","C2B","Chris.Barnfield@modot.mo.gov"]
["SE - Bollinger Seth","bollis1","SE","SZB","Seth.Bollinger@modot.mo.gov"]
["SE - Brooks Scott","brooks3","SE","SDB","Scott.Brooks@modot.mo.gov"]
["SE - Brophy Matthew","brophm1","SE","M8B","Matthew.Brophy@modot.mo.gov"]
["SE - Camden Lisa","camdel1","SE","L2C","Lisa.Camden@modot.mo.gov"]
["SE - Carlton Corbin","carltc1","SE","CGC","corbin.carlton@modot.mo.gov"]
["SE - Coffer Angela","coffea1","SE","ACC","angela.spence@modot.mo.gov"]
["SE - Collins Erin","collie1","SE","EEC","Erin.Collins@modot.mo.gov"]
["SE - Cooley Charles","coolec1","SE","CKC","Charles.Cooley@modot.mo.gov"]
["SE - Crafton Travis","craftt1","SE","TLC","Travis.Crafton@modot.mo.gov"]
["SE - Crocker Christopher","crockc1","SE","CSC","Christopher.Crocker@modot.mo.gov"]
["SE - Crudgington Michael","crudgm","SE","M3C","Michael.Crudgington@modot.mo.gov"]
["SE - Daffron Josie","daffrj1","SE","JMD","Josie.Daffron@modot.mo.gov"]
["SE - Davenport Byron","davenb1","SE","BWD","Bwdavenport@hornershifrin.com"]
["SE - Deffendall Justin","deffej1","SE","JDD","justin.deffendall@modot.mo.gov"]
["SE - Denning Betty","dennib1","SE","BJD","betty.denning@modot.mo.gov"]
["SE - Dowdy Darius","dowdyd","SE","DWD","Darius.Dowdy@modot.mo.gov"]
["SE - Durrow Virgil","durrov1","SE","VTD","Virgil.Durrow@modot.mo.gov"]
["SE - Elliott Nick","ellion1","SE","NLE","nicholas.elliott@modot.mo.gov"]
["SE - Ellis Christopher","ellisc2","SE","C3E","Christopher.Ellis@modot.mo.gov"]
["SE - Ferguson Jason","ferguj1","SE","JAF","Jason.Ferguson@modot.mo.gov"]
["SE - Fields Terry","fieldt","SE","TAF","Terry.Fields@modot.mo.gov"]
["SE - Forshee Desley","forshd1","SE","D1F","Desley.Jett@modot.mo.gov"]
["SE - Georger Eric","george2","SE","ELG","eric.georger@modot.mo.gov"]
["SE - Hills Donald","hillsd1","SE","DAH","Donald.Hills@modot.mo.gov"]
["SE - Hollis Tristan","hollit1","SE","T4H","tristan.hollis@modot.mo.gov"]
["SE - Holt Briain","holtb3","SE","B1H","brian.holt1@modot.mo.gov"]
["SE - Hughes Johnny","hughej1","SE","JAH","Johnny.Hughes@modot.mo.gov"]
["SE - Ingram Logan","ingral1","SE","LBI","logan.ingram@modot.mo.gov"]
["SE - Inman Shannon","inmans","SE","SWI","Shannon.Inman@modot.mo.gov"]
["SE - Jackson Cory","jacksc3","SE","CMJ","cory.jackson@modot.mo.gov"]
["SE - Jernigan Jerrod","jernij1","SE","JBJ","Jerrod.Jernigan@modot.mo.gov"]
["SE - Johnson Sara","johnss8","SE","SMJ","Sara.Johnson@modot.mo.gov"]
["SE - Johnson William","johnsw1","SE","WWJ","William.Johnson@modot.mo.gov"]
["SE - Jones Aaron","jonesa2","SE","AJJ","Aaron.Jones@modot.mo.gov"]
["SE - Knight Nikki","knighn1","SE","NRK","Nikki.Knight@modot.mo.gov"]
["SE - Knobloch Ronald","knoblr1","SE","R1K","ronald.knobloch@modot.mo.gov"]
["SE - Lavacot Matthew","lavacm1","SE","MFL","Matthew.Lavacot@modot.mo.gov"]
["SE - Lee Zachary","leez1","SE","ZRL","Zachary.Lee@modot.mo.gov"]
["SE - Lemon Stephanie","lemons1","SE","S1L","Stephanie.Lemon@modot.mo.gov"]
["SE - Lewis Jerry","lewisj4","SE","J1L","Jerry.Lewis@modot.mo.gov"]
["SE - Massey Corey","massec1","SE","CJM","Corey.Massey@modot.mo.gov"]
["SE - Mitchell Adam","mitcha3","SE","A3M","Adam.Mitchell@modot.mo.gov"]
["SE - Odle Bradley (Brad)","odleb1","SE","BDO","Bradley.Odle@modot.mo.gov"]
["SE - Oliver Matthew","olivem2","SE","MDO","Matthew.Oliver@modot.mo.gov"]
["SE - Philpot Donna","philpd1","SE","DRP","donna.philpot@modot.mo.gov"]
["SE - Plott Kevin","plottk1","SE","K2P","Kevin.Plott@modot.mo.gov"]
["SE - Pulliam Audie","pullia","SE","AAP","Audie.Pulliam@modot.mo.gov"]
["SE - Reckman Daniel","reckmd2","SE","DER","Daniel.Reckman@modot.mo.gov"]
["SE - Reed Nathan","reedn","SE","NBR","Nathan.Reed@modot.mo.gov"]
["SE - Reed Virgil","reedv1","SE","VTR","Virgil.Reed@modot.mo.gov"]
["SE - Roland Suzanne","rolans","SE","SDR","Suzanne.Roland@modot.mo.gov"]
["SE - Rose Melissa","rosem1","SE","MDR","Melissa.Rose@modot.mo.gov"]
["SE - Rothermich Larry","rothel","SE","LDR","Larry.Rothermich@modot.mo.gov"]
["SE - Samer Nicole","samern1","SE","NKG","Nicole.Gharbawi@modot.mo.gov"]
["SE - Schmidt Jacob","schmij8","SE","J1S","jacob.schmidt@modot.mo.gov"]
["SE - Seabaugh Debra","seabad1","SE","DLS","Debra.Seabaugh@modot.mo.gov"]
["SE - Shimbo Seiji","shimbs1","SE","S1S","Seiji.Shimbo@modot.mo.gov"]
["SE - Smith Hakim","smithh4","SE","HIS","hakim.smith@modot.mo.gov"]
["SE - Smith Lynn","smithl5","SE","LWS","Lynn.Smith@modot.mo.gov"]
["SE - Smith Shaun","smiths8","SE","S2S","shaun.smith@modot.mo.gov"]
["SE - Snow Cody","snowc1","SE","CBS","Cody.Snow@modot.mo.gov"]
["SE - Steagall Lucas","steagl1","SE","LDS","lucas.steagall@modot.mo.gov"]
["SE - Stotts Tracee","stottt1","SE","TDS","Tracee.Stotts@modot.mo.gov"]
["SE - Stutsman Brandy","stutsb1","SE","B1S","brandy.stutsman@modot.mo.gov"]
["SE - Sullinger William","sulliw1","SE","WAS","William.Sullinger@modot.mo.gov"]
["SE - Swan Brent","swanb1","SE","BES","Brent.Swan@modot.mo.gov"]
["SE - Taurone Sandra","tauros1","SE","SJT"]
["SE - Thomason Robert","thomar1","SE","RCT","robert.thomason@modot.mo.gov"]
["SE - Turner Paul","turnep3","SE","PWT","Paul.W.Turner@modot.mo.gov"]
["SE - Vermillion Jackie","vermij","SE","JDV","Jackie.Vermillion@modot.mo.gov"]
["SE - Voyles Brandon","voyleb1","SE","BSV","Brandon.Voyles@modot.mo.gov"]
["SE - Wiles Rodney","wilesr","SE","R1W","Rodney.Wiles@modot.mo.gov"]
["SE - Wilkerson Matthew","wilkem1","SE","MDW","Matthew.Wilkerson@modot.mo.gov"]
["SE - Williams Jason","willij8","SE","J4W","Jason.Williams@modot.mo.gov"]
["SE - Woods Kirby","woodsk1","SE","KFW","kirby.woodsjr@modot.mo.gov"]
["SL - Abraham Michael","abrahm1","SL","M1A","mka917@gmail.com"]
["SL - Amburn Stephen","amburs1","SL","SMA","Stephen.Amburn@modot.mo.gov"]
["SL - Anderson Katherine","anderk","SL","KBA","Katherine.Anderson@modot.mo.gov"]
["SL - Arradaza Briel","arradb1","SL","BRA","Briel.Arradaza@modot.mo.gov"]
["SL - Ashek Akhand","asheka1","SL","AMA","akhandmahmood.ashek@modot.mo.gov"]
["SL - Aubuchon Jason","aubucj","SL","JGA","Jason.Aubuchon@modot.mo.gov"]
["SL - Axtell Eric","axtele","SL","ECA","Eric.Axtell@modot.mo.gov"]
["SL - Baker Erica","bakere1","SL","EMB","Erica.Baker@modot.mo.gov"]
["SL - Bartley Earl","bartle1","SL","ELB","Earl.Bartley@modot.mo.gov"]
["SL - Bauer David","bauerd1","SL","D4B","David.Bauer@modot.mo.gov"]
["SL - Beckerle Benjamin","beckeb1","SL","BDB","Benjamin.Beckerle@modot.mo.gov"]
["SL - Bedard Loraine","bedarl2","SL","L2B","lbedard@hrgreen.com"]
["SL - Bier Adam","biera1","SL","AMB","ambier@hornershifrin.com"]
["SL - Bowman Michael","bowmam2","SL","M6B","Michael.Bowman@modot.mo.gov"]
["SL - Brake Lemongelli Patricia","brakep1","SL","PBL","patty.lemongelli@bartwest.com"]
["SL - Brooks Wendy","brookw1","SL","WLB","Wendy.Brooks@modot.mo.gov"]
["SL - Brown Justin","brownjg","SL","JLB","Justin.Brown@modot.mo.gov"]
["SL - Burlbaw Eric","burlbe","SL","ESB","Eric.Burlbaw@modot.mo.gov"]
["SL - Burnworth William","burnww2","SL","W1B","bburnworth@gocos.net"]
["SL - Carr Jim","carrj","SL","JEC","James.Carr@modot.mo.gov"]
["SL - Carter Chad","cartec3","SL","C4C","Chad.Carter@modot.mo.gov"]
["SL - Castro Michael","castrm1","SL","M5C","Michael.Castro@modot.mo.gov"]
["SL - Chamberlain Eric","chambe3","SL","E9C","echamberlain@hrgreen.com"]
["SL - Chambers Jeffrey","chambj1","SL","JTC","Jeffrey.Chambers@modot.mo.gov"]
["SL - Clark Mark","clarkm3","SL","MWC","mark.clark2@modot.mo.gov"]
["SL - Clark Ronald","clarkr5","SL","RRC","ronald.clark@modot.mo.gov"]
["SL - Colbert Christopher","colbec1","SL","CAC","Christopher.Colbert@modot.mo.gov"]
["SL - Coleman Paul","colemp1","SL","PTC","Paul.Coleman@modot.mo.gov"]
["SL - Corrigan Jameson","corrij1","SL","J1C","Jameson.Corrigan@modot.mo.gov"]
["SL - Cunningham Darian","cunnid3","SL","DJC","Darian.Cunningham@modot.mo.gov"]
["SL - Damery Jennifer","damerj1","SL","J4D","Jennifer.Damery@modot.mo.gov"]
["SL - Dansberry Anthony","dansba1","SL","ADD","Anthony.Dansberry@modot.mo.gov"]
["SL - Degeal Rhonda","degear1","SL","RLD","Rhonda.Degeal@modot.mo.gov"]
["SL - Dietrich Philip","dietrp1","SL","PAD","Philip.Dietrich@modot.mo.gov"]
["SL - Dukes Melvin","dukesm1","SL","M1D","Melvin.Dukes@modot.mo.gov"]
["SL - Dunn Jason","dunnj1","SL","JAD","Jason.Dunn@modot.mo.gov"]
["SL - Engemann Chad","engemc1","SL","C1E","Chad.Engemann@modot.mo.gov"]
["SL - Erdman Allan","erdmaa2","SL","AAE","aaerdman@hornershifrin.com"]
["SL - Estopare Roger","estopr1","SL","RTE","Roger.Estopare@modot.mo.gov"]
["SL - Farrar Cindy","farrac","SL","CMF","Cynthia.Farrar@modot.mo.gov"]
["SL - Fernandez Michael","fernam1","SL","MJF","Michael.Fernandez@modot.mo.gov"]
["SL - French Danielle","frencd2","SL","DFR","Danielle.French@modot.mo.gov"]
["SL - Fry Dean","fryd","SL","DDF","Dean.Fry@modot.mo.gov"]
["SL - Fuller Kevin","fullerk2","SL","KPF","kfuller@cmtengr.com"]
["SL - Garcia Herberto","garcih1","SL","HFG","herberto.garcia@modot.mo.gov"]
["SL - Geldmacher Kevin","geldmk1","SL","KMG","kevin.geldmacher@modot.mo.gov"]
["SL - Gibbons Nicholas","gibbon1","SL","NJG","Nicholas.Gibbons@modot.mo.gov"]
["SL - Giles Kyle","gilesk1","SL","KBG","Kyle.Giles@modot.mo.gov"]
["SL - Glock Christian","glockc1","SL","CJG","christian.glock@modot.mo.gov"]
["SL - Golab Sarah","golabs1","SL","SAG","Sarah.Golab@modot.mo.gov"]
["SL - Grana John","granaj1","SL","JVG","jgrana@hrgreen.com"]
["SL - Gummersheimer Robert (Bob)","gummer1","SL","RCG","bgummersheimer@gonzalezcos.com"]
["SL - Hagedorn John","hagedj1","SL","JEH","jhagedorn@hrgreen.com"]
["SL - Hamilton Kendric","hamilk2","SL","KRH","khamilton@gocos.net"]
["SL - Harangozo Keith","harank1","SL","KMH","Keith.Harangozo@modot.mo.gov"]
["SL - Harizal Michael","harizm1","SL","MCH","mcharizal@hornershifrin.com"]
["SL - Hayden Ena","haydee1","SL","EMH","ena.hayden@modot.mo.gov"]
["SL - Hays Bradley","haysb1","SL","BEH","behays@hornershifrin.com"]
["SL - Hellebusch Tim","hellet","SL","T1H","Tim.Hellebusch@modot.mo.gov"]
["SL - Hendrix Melisa","hendrm1","SL","MDH","Melisa.Hendrix@modot.mo.gov"]
["SL - Heuszel Jessica","heuszj1","SL","JMH","jessica.heuszel@modot.mo.gov"]
["SL - Hicks Thomas","hickst1","SL","TNH","tnhicks@transystems.com"]
["SL - Hill Tyler","hillt5","SL","TRH","tyler.hill@modot.mo.gov"]
["SL - Hopkins Matthew","hopkim1","SL","MSH","MATTHEW.HOPKINS@modot.mo.gov"]
["SL - Huskey Mitchell","huskem","SL","MRH","Mitchell.Huskey@modot.mo.gov"]
["SL - Ihsan Adel","ihsana1","SL","A1I","adel.ihsan@modot.mo.gov"]
["SL - Ingrum Eric","ingrue","SL","EVI","Eric.Ingrum@modot.mo.gov"]
["SL - Ippensen Kyle","ippenk1","SL","KRI","kyle.ippensen@modot.mo.gov"]
["SL - James Cassandra","jamesc4","SL","CAJ","Cassandra.james@modot.mo.gov"]
["SL - Jansson Matthew (Niall)","janssm","SL","MNJ","Matthew.Jansson@modot.mo.gov"]
["SL - Jimenez Jayden","jimenj1","SL","J2J","Jayden.Jimenez@modot.mo.gov"]
["SL - Johnson Jermyn","johnsj5","SL","J1J","Jermyn.Johnson@modot.mo.gov"]
["SL - Jones Brandon","jonesb6","SL","BLJ","Brandon.Jones@modot.mo.gov"]
["SL - Kirchner Michael","kirchm1","SL","MSK","mskirchner@transystems.com"]
["SL - Kloeppinger Jacob","kloepj1","SL","JTK","Jacob.Kloeppinger@modot.mo.gov"]
["SL - Koch Kevin","kochk","SL","KJK","Kevin.Koch@modot.mo.gov"]
["SL - Konersmann Glenn","konerg1","SL","GDK","Glenn.Konersmann@modot.mo.gov"]
["SL - Kopinski Eric","kopine1","SL","ETK","eric.kopinski@modot.mo.gov"]
["SL - Kratky Jack","kratkj1","SL","JCK","Jack.Kratky@modot.mo.gov"]
["SL - Lange Brian","langeb1","SL","BDL","Brian.Lange@modot.mo.gov"]
["SL - Leeker Joshua","leekej1","SL","JML","Joshua.Leeker@modot.mo.gov"]
["SL - Leftridge Kevin","leftrk1","SL","KML","kleftridge@gonzalezcos.com"]
["SL - Lewis John","lewisj1","SL","JCL","John.Lewis@modot.mo.gov"]
["SL - Lewis Jordan","lewisja","SL","JJL","Jordan.Lewis@modot.mo.gov"]
["SL - Litzau Michael","litzam","SL","MJL","Michael.Litzau@modot.mo.gov"]
["SL - Locke Tabitha","locket1","SL","TSL","Tabitha.Locke@modot.mo.gov"]
["SL - Loseille Michael","loseim2","SL","MRL","mloseille@cmtengr.com"]
["SL - Mack Kelvin","mackk","SL","KRM","Kelvin.Mack@modot.mo.gov"]
["SL - Marsden Magdalena","marsdm1","SL","MKM","Magdalena.Marsden@modot.mo.gov"]
["SL - Marshall Kate","marshk2","SL","K3M","Kate.Marshall@modot.mo.gov"]
["SL - McKinney Randy","mckinr1","SL","R3M","Randy.McKinney@modot.mo.gov"]
["SL - Middleton Donald","middld1","SL","DSM","Donald.Middleton@modot.mo.gov"]
["SL - Morgan Chris","morgac1","SL","CKM","Christopher.Morgan@modot.mo.gov"]
["SL - Musgrave Richard","musgrr1","SL","RPM","Richard.Musgrave@modot.mo.gov"]
["SL - Nichols Kevin","nichok3","SL","KTN","Kevin.Nichols@modot.mo.gov"]
["SL - Norton Nathan","norton1","SL","NRN","Nathan.Norton@modot.mo.gov"]
["SL - Obi Jeremiah","obij1","SL","JOO","Jeremiah.Obi@modot.mo.gov"]
["SL - Oettle Steven","oettls1","SL","SMO","steven.oettle@modot.mo.gov"]
["SL - Peterson Ronald","peterr1","SL","RLP","Ronald.Peterson@modot.mo.gov"]
["SL - Phinney Alex","phinna1","SL","A1P","Alex.Phinney@modot.mo.gov"]
["SL - Picklesimer Todd","picklt2","SL","T9P","tpicklesimer@cmtengr.com"]
["SL - Picklesimer Todd","picklt2","SL","T9P"]
["SL - Rana Jamie","ranaj2","SL","J2R","jamie.rana@modot.mo.gov"]
["SL - Redhage Christine","redhac","SL","CMR","Christine.Redhage@modot.mo.gov"]
["SL - Reeb Cheryl","reebc1","SL","CDR","Cheryl.Reeb@modot.mo.gov"]
["SL - Roberts Geoffrey","roberg5","SL","GLR","groberts@hrgreen.com"]
["SL - Sanders Bryson","sandeb2","SL","BRS","Bryson.Sanders@modot.mo.gov"]
["SL - Sawyer Jason","sawyej2","SL","JAS","jasawyer@transystems.com"]
["SL - Schirmer Joshua","schirj1","SL","J7S","Joshua.Schirmer-Gruska@modot.mo.gov"]
["SL - Shaw Robert","shawr","SL","R4S","Robert.Shaw@modot.mo.gov"]
["SL - Smith Eric","smithea","SL","ESS","essmith@hornershifrin.com"]
["SL - Smith Roy (W)","smithrl","SL","R5S","roy.smith@modot.mo.gov"]
["SL - Speidel Timothy","speidt1","SL","TPS","Timothy.Speidel@modot.mo.gov"]
["SL - Spurling Tyler","spurlt2","SL","T4S","tyler.spurling@modot.mo.gov"]
["SL - St Gemme Robert","stgemr1","SL","RWS","bstgemme@gonzalezcos.com"]
["SL - Steppig Ryan","steppr1","SL","R8M","Ryan.Steppig@modot.mo.gov"]
["SL - Steward David","stewad1","SL","DRS","David.Steward@modot.mo.gov"]
["SL - Stewart Charlotte","stewac","SL","CMS","Charlotte.Stewart@modot.mo.gov"]
["SL - Sweet Michelle","sweetm2","SL","MRS","Michelle.Sweet@modot.mo.gov"]
["SL - Thurston Wyatt","thursw1","SL","WET","Wyatt.Thurston@modot.mo.gov"]
["SL - Tincknell Victor","tinckv1","SL","VQT","Victor.Tincknell@modot.mo.gov"]
["SL - Unland Joshua","unlanj1","SL","JMU","junland@hrgreen.com"]
["SL - Vance Franklin","vancef1","SL","FTV","Franklin.Vance@modot.mo.gov"]
["SL - Wade Jennifer","wadej1","SL","J8W","jennifer.wade@modot.mo.gov"]
["SL - Wagaman Tyler","wagamt1","SL","TCW","Tyler.Wagaman@modot.mo.gov"]
["SL - Walk Craig","walkc1","SL","CMW","Craig.Walk@modot.mo.gov"]
["SL - Ward Christopher","wardc1","SL","CEW","Christopher.Ward@modot.mo.gov"]
["SL - Washausen Scott","washas","SL","SJW","Scott.Washausen@modot.mo.gov"]
["SL - Washington David","washid1","SL","DBW","David.Washington@modot.mo.gov"]
["SL - Weldesenbet Fidel","weldef1","SL","FFW","Fidel.Weldesenbet@modot.mo.gov"]
["SL - Wiles David","wilesd","SL","DKW","David.Wiles@modot.mo.gov"]
["SL - Wilson Zachery","wilsoz1","SL","ZRW","Zachery.Wilson@modot.mo.gov"]
["SL - Wolk Tyler","wolkt1","SL","TJW","Tyler.Wolk@modot.mo.gov"]
["SL - Wozniak Lori","woznil1","SL","LMW","\tLori.Wozniak@modot.mo.gov"]
["SL - Zydiak Daniel","zydiad1","SL","DPZ","Daniel.Zydiak@modot.mo.gov"]
["SW -  Gripka Donald","gripkd","SW","D7G","donald.gripka@modot.mo.gov"]
["SW - Adams Shane","adamss4","SW","S2A","shane.adams@modot.mo.gov"]
["SW - Arnold Michael","arnolm2","SW","MAA","Michael.Arnold@modot.mo.gov"]
["SW - Atkinson Michael","atkinm2","SW","ARK","Michael.Atkinson@modot.mo.gov"]
["SW - Baban Vivianna","babanv1","SW","VDW","vivianna.baban@modot.mo.gov"]
["SW - Barnes Garth","barneg2","SW","GRB","garth.barnes@modot.mo.gov"]
["SW - Bass Michael","bassm1","SW","MJB","mbass@cmtengr.com"]
["SW - Becker Christopher","beckec1","SW","CRB","Christopher.Becker@modot.mo.gov"]
["SW - Bennett Kyle","bennek1","SW","KRB","Kyle.Bennett@modot.mo.gov"]
["SW - Bensing Peter","bensinp1","SW","PMB","pbensing@cmtengr.com"]
["SW - Berry Chad","berryc3","SW","CFB","chad.berry@modot.mo.gov"]
["SW - Boyd Adam","boyda1","SW","ACB","adam.boyd@modot.mo.gov"]
["SW - Brown Sarah","browns9","SW","SLB","Sarah.Brown@modot.mo.gov"]
["SW - Campbell Steven","campbs1","SW","SVC","Steven.Campbell@modot.mo.gov"]
["SW - Capeder Jacob","capedj2","SW","JDC","Jacob.Capeder@modot.mo.gov"]
["SW - Chapman Gregory","chapmg1","SW","GRC","Gregory.Chapman@modot.mo.gov"]
["SW - Christenson Michael","chrism2","SW","MAC","michael.christenson@modot.mo.gov"]
["SW - Clark Dean","clarkd4","SW","DRC","Dean.Clark@modot.mo.gov"]
["SW - Collins Kemmy","collik1","SW","KMC","kemmy.collins@modot.mo.gov"]
["SW - Condron Darren","condrd","SW","DEC","darren.condron@modot.mo.gov"]
["SW - Cooper Brody","coopeb1","SW","BMC","brody.cooper@modot.mo.gov"]
["SW - Couffer Jimmy","couffj","SW","J3C","jimmy.couffer@modot.mo.gov"]
["SW - Davis Joshua","davisjf","SW","JWD","joshua.davis@modot.mo.gov"]
["SW - DeJesus William","dejesw1","SW","W9D","william.dejesus@modot.mo.gov"]
["SW - Desha Terrell","deshat1","SW","TAD","terrell.desha@modot.mo.gov"]
["SW - Dingman Ryan","dingmr1","SW","RMD","ryan.dingman@modot.mo.gov"]
["SW - Earls Teddy","earlst","SW","TJE","teddy.earls@modot.mo.gov"]
["SW - Edelhuber Brian","edelhb1","SW","BJE","Brian.Edelhuber@modot.mo.gov"]
["SW - Evans Garrett","evansg2","SW","GZE","Garrett.Evans@modot.mo.gov"]
["SW - Evenden Jason","evendj1","SW","JDE","Jason.Evenden@modot.mo.gov"]
["SW - Fields Adam","fielda4","SW","ACF","Adam.Fields@modot.mo.gov"]
["SW - Fraser Steven","frases1","SW","SAF","steven.fraser@modot.mo.gov"]
["SW - Frazier Briain","frazib1","SW","BKF","brian.frazier1@modot.mo.gov"]
["SW - Girgin Aydogan","girgia","SW","ALG","aydogan.girgin@modot.mo.gov"]
["SW - Grellner Christopher","grellc1","SW","C1G","Christopher.Grellner@modot.mo.gov"]
["SW - Gwin Collin","gwinc1","SW","CDG","Collin.Gwin@modot.mo.gov"]
["SW - Haskew James","haskej1","SW","JKH","james.haskew@modot.mo.gov"]
["SW - Helm Garrett","helmg3","SW","GWH","Garrett.Helm@modot.mo.gov"]
["SW - Herbst Christopher","herbsc1","SW","C1H","Christopher.Herbst@modot.mo.gov"]
["SW - Hightower Cody","hightc1","SW","CRH","cody.hightower@modot.mo.gov"]
["SW - Hill Colton","hillc8","SW","H5C","Colton.Hill@modot.mo.gov"]
["SW - Howell James","howelj4","SW","JNH","james.howell@modot.mo.gov"]
["SW - Hubbard Isaiah","hubbai1","SW","IAH","isaiah.hubbard@modot.mo.gov"]
["SW - Huckaby Russel","huckar","SW","RCH","Russel.Huckaby@modot.mo.gov"]
["SW - Jacobs Stuart","jacobs1","SW","S1J","Stuart.Jacobs@modot.mo.gov"]
["SW - Jones Levi","jonesl7","SW","LMJ","levi.jones@modot.mo.gov"]
["SW - Karallas Isabella","karali2","SW","ISK","ikarallas@trekkdesigngroup.com"]
["SW - Kelso Shawn","kelsos1","SW","SMK","shawn.kelso@modot.mo.gov"]
["SW - Koestner Gidget","koestg1","SW","G1K","gidget.koestner@modot.mo.gov"]
["SW - Koppitz Matthew","koppim1","SW","MJK","matthew.koppitz@modot.mo.gov"]
["SW - Lane Karen","lanek1","SW","K1L","Karen.Lane@modot.mo.gov"]
["SW - Law Jacob","lawj1","SW","JCL","jacob.law@modot.mo.gov"]
["SW - Lee Timothy","leet1","SW","TAL","timothy.lee@modot.mo.gov"]
["SW - Manke Brian","mankeb1","SW","BNM","Brian.Manke@modot.mo.gov"]
["SW - Mann Roger","mannr1","SW","R2M","roger.mann@modot.mo.gov"]
["SW - Markham Steve","markhs","SW","STM","steven.markham@modot.mo.gov"]
["SW - Marti Kevin","martik3","SW","KKM","Kevin.Marti@modot.mo.gov"]
["SW - Martinez Josue","martijc","SW","JXM","josue.martinez@modot.mo.gov"]
["SW - McRae Adam","mcraea1","SW","ASM","Adam.McRae@modot.mo.gov"]
["SW - Morris Marvin","morrim","SW","MMM","marvin.morris@modot.mo.gov"]
["SW - Oaks Brandon","oaksb1","SW","BMO","brandon.oaks@modot.mo.gov"]
["SW - Packard Ian","packai1","SW","ICP","ian.packard@modot.mo.gov"]
["SW - Plummer Mickey","plummm1","SW","MAP","mickey.plummer@modot.mo.gov"]
["SW - Preuss Nicole","preusn1","SW","NEP","Nicole.Preuss@modot.mo.gov"]
["SW - Prock David","prockd1","SW","DLP","dprock@cmtengr.com"]
["SW - Putnam Blake","putnab1","SW","BAP","Blake.Putnam@modot.mo.gov"]
["SW - Querry Bryan","querrb1","SW","BDQ","bryan.querry@modot.mo.gov"]
["SW - Reedy Steven","reedys","SW","SRR","steven.reedy@modot.mo.gov"]
["SW - Rice Justin","ricej3","SW","JLR","justin.rice@modot.mo.gov"]
["SW - Rieder Aaron","riedea1","SW","AMR","aaron.rieder@modot.mo.gov"]
["SW - Roeger Daniel","roeged1","SW","DJR","Daniel.Roeger@modot.mo.gov"]
["SW - Rosendale Luke","rosenl2","SW","L3R","Luke.Rosendale@modot.mo.gov"]
["SW - Russell Amy","russea1","SW","ANR","amy.russell@modot.mo.gov"]
["SW - Schofield Lee","schofl1","SW","LCS","lschofield@greatriv.com"]
["SW - Severs Dwayne","severd1","SW","DCS","dwayne.severs@modot.mo.gov"]
["SW - Sherman Kirk","shermk1","SW","KWS","kirk.sherman@modot.mo.gov"]
["SW - Smalley Jonathon","smallj1","SW","JES","jonathon.smalley@modot.mo.gov"]
["SW - Sorensen Jonathan","sorenj1","SW","JWS","Jonathan.Sorensen@modot.mo.gov"]
["SW - Spratt Aaron","sprata1","SW","A4S","aaron.spratt@modot.mo.gov"]
["SW - States William","statew1","SW","WPS","william.states@modot.mo.gov"]
["SW - Stewart Tyler","stewat2","SW","T2W","Tyler.Stewart@modot.mo.gov"]
["SW - Teegardin Johnny","teegaj","SW","JLT","johnny.teegardin@modot.mo.gov"]
["SW - Thomas Druly","thomad8","SW","DDT","Druly.Thomas@modot.mo.gov"]
["SW - Thomas Jennifer","thomaj8","SW","J8T"]
["SW - Tibbets Jamie","tibbej1","SW","JDT","Jamie.Tibbets@modot.mo.gov"]
["SW - Todd Brian","toddb","SW","BAT","brian.todd@modot.mo.gov"]
["SW - Uptegrove Richard","uptegr","SW","RSU","richard.uptegrove@modot.mo.gov"]
["SW - Vanwey Steve","vanwes2","SW","SLV","svanwey@andersonengineeringinc.com"]
["SW - Vennekotter Michael","vennem1","SW","MGV","michael.vennekotter@modot.mo.gov"]
["SW - Whited Mark","whitem3","SW","MOW","mark.whited@modot.mo.gov"]
["SW - Wilkins Cody","wilkic1","SW","C1W","cody.wilkins@modot.mo.gov"]
["SW - Willard Matthew","willam","SW","MGW","matthew.willard@modot.mo.gov"]
["SW - Williams Jared","willijo","SW","JZW","Jared.Williams@modot.mo.gov"]
["SW - Willis Bethany","willibk","SW","BMW","bethany.willis@modot.mo.gov"]
[" - DeClue Andrew","declua1",null,"ASD","andrew.declue@modot.mo.gov"]
[" - Hodde Joshua","hoddej1",null,"JWH","Joshua.Hodde@modot.mo.gov"]
[" - Hogue Denny","hogued1",null,"D1H","denny.hogue@modot.mo.gov"]
[" - Middendorf Anthony","middea1",null,"AGM","anthony.middendorf@modot.mo.gov"]
[" - Penner Russell","penner1",null,"RAP","Russell.Penner@modot.mo.gov"]
[" - Saucier Jeannette","saucij1",null,"JMS","jeannette.saucier@modot.mo.gov"]
[" - Sconce Jacob","sconcj1",null,"JGS","jacob.sconce@modot.mo.gov"]
[" - Slavens Richard","slaver2",null,"RJS","Richard.Slavens@modot.mo.gov"]
[" - Smith Christopher","smithc12",null,"CSS","Christopher.Smith1@modot.mo.gov"]
[" - Vohs Robert","vohsr1",null,"RJV","robert.vohs@modot.mo.gov"]
[" - Walkenhorst Jack","walkej3",null,"J3W","jack.walkenhorst@modot.mo.gov"]
[" - Wieberg Leslie","wiebel2",null,"LAW","leslie.wieberg@modot.mo.gov"]
[" - Williams Bradley","willibi",null,"BSW","Bradley.Williams1@modot.mo.gov"]

{"sheet":"Plants","index":2,"n_rows":400,"n_cols":6,"rows_kept":400,"cut":false,"hidden":false,"merged":[]}
[]
[null,"Producer Supplier Name","Plant ID","Producer Supplier Code","Plant Type","Plant Activity Status Type"]
[]
[{"$f":"B4&\" - \"&C4","v":"APAC - Asphalt Plants - Agency"},"APAC - Asphalt Plants","Agency","3176700025","DRUM","A"]
[{"$f":"B5&\" - \"&C5","v":"APAC - Asphalt Plants - Ash Grove"},"APAC - Asphalt Plants","Ash Grove","3176700025",null,"A"]
[{"$f":"B6&\" - \"&C6","v":"APAC - Asphalt Plants - Auxvasse"},"APAC - Asphalt Plants","Auxvasse","3176700025","DRUM","A"]
[{"$f":"B7&\" - \"&C7","v":"APAC - Asphalt Plants - Ava"},"APAC - Asphalt Plants","Ava","3176700025",null,"A"]
[{"$f":"B8&\" - \"&C8","v":"APAC - Asphalt Plants - BagnellDam"},"APAC - Asphalt Plants","BagnellDam","3176700025","DRUM","A"]
[{"$f":"B9&\" - \"&C9","v":"APAC - Asphalt Plants - Bear Hollow"},"APAC - Asphalt Plants","Bear Hollow","3176700025","DRUM","A"]
["APAC - Asphalt Plants - Boonville","APAC - Asphalt Plants","Boonville","3176700025","DRUM","A"]
["APAC - Asphalt Plants - Branson","APAC - Asphalt Plants","Branson","3176700025","DRUM","A"]
["APAC - Asphalt Plants - Brookfield","APAC - Asphalt Plants","Brookfield","3176700025","DRUM","A"]
["APAC - Asphalt Plants - Butler","APAC - Asphalt Plants","Butler","3176700025","DRUM","A"]
["APAC - Asphalt Plants - Cameron","APAC - Asphalt Plants","Cameron","3176700025","DRUM","A"]
["APAC - Asphalt Plants - Chesapeake","APAC - Asphalt Plants","Chesapeake","3176700025","DRUM","A"]
["APAC - Asphalt Plants - Cole Camp","APAC - Asphalt Plants","Cole Camp","3176700025","DRUM","A"]
["APAC - Asphalt Plants - Cole Camp-2","APAC - Asphalt Plants","Cole Camp-2","3176700025","DRUM","A"]
["APAC - Asphalt Plants - Danville","APAC - Asphalt Plants","Danville","3176700025","DRUM","A"]
["APAC - Asphalt Plants - Dresden","APAC - Asphalt Plants","Dresden","3176700025","DRUM","A"]
["APAC - Asphalt Plants - Edina","APAC - Asphalt Plants","Edina","3176700025","DRUM","A"]
["APAC - Asphalt Plants - El Dorado Sprng","APAC - Asphalt Plants","El Dorado Sprng","3176700025","DRUM","A"]
["APAC - Asphalt Plants - Fort Scott, KS","APAC - Asphalt Plants","Fort Scott, KS","3176700025",null,"A"]
["APAC - Asphalt Plants - Harrisonville","APAC - Asphalt Plants","Harrisonville","3176700025","DRUM","A"]
["APAC - Asphalt Plants - Harrisonville-2","APAC - Asphalt Plants","Harrisonville-2","3176700025","DRUM","A"]
["APAC - Asphalt Plants - Higginsville","APAC - Asphalt Plants","Higginsville","3176700025","DRUM","A"]
["APAC - Asphalt Plants - Holts Summit","APAC - Asphalt Plants","Holts Summit","3176700025","DRUM","A"]
["APAC - Asphalt Plants - Houston","APAC - Asphalt Plants","Houston","3176700025","DRUM","A"]
["APAC - Asphalt Plants - Jamestown","APAC - Asphalt Plants","Jamestown","3176700025","DRUM","A"]
["APAC - Asphalt Plants - Jane","APAC - Asphalt Plants","Jane","3176700025",null,"A"]
["APAC - Asphalt Plants - Jasper","APAC - Asphalt Plants","Jasper","3176700025","DRUM","A"]
["APAC - Asphalt Plants - Joplin","APAC - Asphalt Plants","Joplin","3176700025","DRUM","A"]
["APAC - Asphalt Plants - Kirksville","APAC - Asphalt Plants","Kirksville","3176700025","DRUM","A"]
["APAC - Asphalt Plants - Lamar","APAC - Asphalt Plants","Lamar","3176700025","DRUM","A"]
["APAC - Asphalt Plants - Linn","APAC - Asphalt Plants","Linn","3176700025","DRUM","A"]
["APAC - Asphalt Plants - Linn Creek","APAC - Asphalt Plants","Linn Creek","3176700025","DRUM","A"]
["APAC - Asphalt Plants - Linn Creek #2","APAC - Asphalt Plants","Linn Creek #2","3176700025","DRUM","A"]
["APAC - Asphalt Plants - Loose Creek","APAC - Asphalt Plants","Loose Creek","3176700025","DRUM","A"]
["APAC - Asphalt Plants - Louisburg, KS","APAC - Asphalt Plants","Louisburg, KS","3176700025","DRUM","A"]
["APAC - Asphalt Plants - Macon","APAC - Asphalt Plants","Macon","3176700025","DRUM","A"]
["APAC - Asphalt Plants - Mansfield","APAC - Asphalt Plants","Mansfield","3176700025","DRUM","A"]
["APAC - Asphalt Plants - Marshall","APAC - Asphalt Plants","Marshall","3176700025","DRUM","A"]
["APAC - Asphalt Plants - Marshfield","APAC - Asphalt Plants","Marshfield","3176700025","DRUM","A"]
["APAC - Asphalt Plants - Millersb2","APAC - Asphalt Plants","Millersb2","3176700025","DRUM","A"]
["APAC - Asphalt Plants - Montevallo","APAC - Asphalt Plants","Montevallo","3176700025","DRUM","A"]
["APAC - Asphalt Plants - Mound City","APAC - Asphalt Plants","Mound City","3176700025","DRUM","A"]
["APAC - Asphalt Plants - Mt. Airy","APAC - Asphalt Plants","Mt. Airy","3176700025","BATC","A"]
["APAC - Asphalt Plants - Osage Beach","APAC - Asphalt Plants","Osage Beach","3176700025","DRUM","A"]
["APAC - Asphalt Plants - Purdy","APAC - Asphalt Plants","Purdy","3176700025","DRUM","A"]
["APAC - Asphalt Plants - Quinn","APAC - Asphalt Plants","Quinn","3176700025","DRUM","A"]
["APAC - Asphalt Plants - Rayville","APAC - Asphalt Plants","Rayville","3176700025","DRUM","A"]
["APAC - Asphalt Plants - Rocky Fork","APAC - Asphalt Plants","Rocky Fork","3176700025","DRUM","A"]
["APAC - Asphalt Plants - Sereno","APAC - Asphalt Plants","Sereno","3176700025","DRUM","A"]
["APAC - Asphalt Plants - Springfield","APAC - Asphalt Plants","Springfield","3176700025","DRUM","A"]
["APAC - Asphalt Plants - Stanley, KS","APAC - Asphalt Plants","Stanley, KS","3176700025","DRUM","A"]
["APAC - Asphalt Plants - Sugar Creek 430","APAC - Asphalt Plants","Sugar Creek 430","3176700025","DRUM","A"]
["APAC - Asphalt Plants - Tightwad","APAC - Asphalt Plants","Tightwad","3176700025","DRUM","A"]
["APAC - Asphalt Plants - Tipton","APAC - Asphalt Plants","Tipton","3176700025","DRUM","A"]
["APAC - Asphalt Plants - Warsaw","APAC - Asphalt Plants","Warsaw","3176700025","DRUM","A"]
["APAC - Asphalt Plants - Waverly","APAC - Asphalt Plants","Waverly","3176700025","DRUM","A"]
["APAC - Asphalt Plants - Westphalia","APAC - Asphalt Plants","Westphalia","3176700025","DRUM","A"]
["APAC - Asphalt Plants - Wheatland","APAC - Asphalt Plants","Wheatland","3176700025","DRUM","A"]
["APAC - Asphalt Plants - Willard","APAC - Asphalt Plants","Willard","3176700025","DRUM","A"]
["Apex Paving Co. (Girardeau Contractors) - Advance      ","Apex Paving Co. (Girardeau Contractors)","Advance      ","3200700120","DRUM","A"]
["Apex Paving Co. (Girardeau Contractors) - Cape Girardeau","Apex Paving Co. (Girardeau Contractors)","Cape Girardeau","3200700120","BATC","A"]
["Apex Paving Co. (Girardeau Contractors) - Dexter","Apex Paving Co. (Girardeau Contractors)","Dexter","3200700120","BATC","A"]
["Apex Paving Co. (Girardeau Contractors) - Hayti","Apex Paving Co. (Girardeau Contractors)","Hayti","3200700120","DRUM","A"]
["Apex Paving Co. (Girardeau Contractors) - New Madrid","Apex Paving Co. (Girardeau Contractors)","New Madrid","3200700120",null,"A"]
["Apex Paving Co. (Girardeau Contractors) - PoplarBluff","Apex Paving Co. (Girardeau Contractors)","PoplarBluff","3200700120","DRUM","A"]
["Apex Paving Co. (Girardeau Contractors) - Sikeston","Apex Paving Co. (Girardeau Contractors)","Sikeston","3200700120",null,"A"]
["Base Rock Minerals, Fruitland - 25","Base Rock Minerals, Fruitland","25","3242100310","FOMR","A"]
["Blevins Asphalt Construction - 0","Blevins Asphalt Construction","0","3132800027","OAS","A"]
["Blevins Asphalt Construction - 1","Blevins Asphalt Construction","1","3132800027","OAS","A"]
[{"$f":"B73&\" - \"&C73","v":"Blevins Asphalt Construction - Brookline"},"Blevins Asphalt Construction","Brookline","3132800027","DRUM","A"]
["Blevins Asphalt Construction - Carthage","Blevins Asphalt Construction","Carthage","3132800027","DRUM","A"]
["Bridgefield LLC Asphalt Plants - Bridgeton","Bridgefield LLC Asphalt Plants","Bridgeton","3537900126",null,"A"]
["Bross Construction, Asphalt - Amazonia","Bross Construction, Asphalt","Amazonia","3008600023","DRUM","A"]
["Bross Construction, Asphalt - Arcadia Valley","Bross Construction, Asphalt","Arcadia Valley","3008600023","DRUM","A"]
["Bross Construction, Asphalt - Ashley","Bross Construction, Asphalt","Ashley","3008600023","DRUM","A"]
["Bross Construction, Asphalt - Auburn","Bross Construction, Asphalt","Auburn","3008600023","DRUM","A"]
["Bross Construction, Asphalt - Auxvasse","Bross Construction, Asphalt","Auxvasse","3008600023","DRUM","A"]
["Bross Construction, Asphalt - Barber","Bross Construction, Asphalt","Barber","3008600023","DRUM","A"]
["Bross Construction, Asphalt - Bates City","Bross Construction, Asphalt","Bates City","3008600023","DRUM","A"]
["Bross Construction, Asphalt - Bethany","Bross Construction, Asphalt","Bethany","3008600023","DRUM","A"]
["Bross Construction, Asphalt - Bloomsdale","Bross Construction, Asphalt","Bloomsdale","3008600023","DRUM","A"]
["Bross Construction, Asphalt - Blue Mound","Bross Construction, Asphalt","Blue Mound","3008600023","DRUM","A"]
["Bross Construction, Asphalt - Boliver","Bross Construction, Asphalt","Boliver","3008600023","DRUM","A"]
["Bross Construction, Asphalt - Bonne Terre","Bross Construction, Asphalt","Bonne Terre","3008600023","DRUM","A"]
["Bross Construction, Asphalt - Boonville","Bross Construction, Asphalt","Boonville","3008600023","DRUM","A"]
["Bross Construction, Asphalt - Butler","Bross Construction, Asphalt","Butler","3008600023","DRUM","A"]
["Bross Construction, Asphalt - California","Bross Construction, Asphalt","California","3008600023","DRUM","A"]
["Bross Construction, Asphalt - Canton","Bross Construction, Asphalt","Canton","3008600023","DRUM","A"]
["Bross Construction, Asphalt - Chesterfield","Bross Construction, Asphalt","Chesterfield","3008600023","DRUM","A"]
["Bross Construction, Asphalt - Concordia","Bross Construction, Asphalt","Concordia","3008600023","DRUM","A"]
["Bross Construction, Asphalt - Cooper","Bross Construction, Asphalt","Cooper","3008600023","DRUM","A"]
["Bross Construction, Asphalt - Corning","Bross Construction, Asphalt","Corning","3008600023","DRUM","A"]
["Bross Construction, Asphalt - Cuba","Bross Construction, Asphalt","Cuba","3008600023","DRUM","A"]
["Bross Construction, Asphalt - Danville","Bross Construction, Asphalt","Danville","3008600023","DRUM","A"]
["Bross Construction, Asphalt - Edina","Bross Construction, Asphalt","Edina","3008600023","DRUM","A"]
["Bross Construction, Asphalt - El Dorado","Bross Construction, Asphalt","El Dorado","3008600023","DRUM","A"]
["Bross Construction, Asphalt - Elk Prair(Rolla","Bross Construction, Asphalt","Elk Prair(Rolla","3008600023","DRUM","A"]
["Bross Construction, Asphalt - Elm","Bross Construction, Asphalt","Elm","3008600023","DRUM","A"]
["Bross Construction, Asphalt - Ely","Bross Construction, Asphalt","Ely","3008600023","DRUM","A"]
["Bross Construction, Asphalt - Ewing","Bross Construction, Asphalt","Ewing","3008600023","DRUM","A"]
["Bross Construction, Asphalt - Fairplay","Bross Construction, Asphalt","Fairplay","3008600023","DRUM","A"]
["Bross Construction, Asphalt - Fremont","Bross Construction, Asphalt","Fremont","3008600023","DRUM","A"]
["Bross Construction, Asphalt - Gilliam","Bross Construction, Asphalt","Gilliam","3008600023","DRUM","A"]
["Bross Construction, Asphalt - Hannibal west","Bross Construction, Asphalt","Hannibal west","3008600023","DRUM","A"]
["Bross Construction, Asphalt - Higginsville","Bross Construction, Asphalt","Higginsville","3008600023","DRUM","A"]
["Bross Construction, Asphalt - Houstonia","Bross Construction, Asphalt","Houstonia","3008600023","DRUM","A"]
["Bross Construction, Asphalt - Huntington","Bross Construction, Asphalt","Huntington","3008600023","DRUM","A"]
["Bross Construction, Asphalt - Independence","Bross Construction, Asphalt","Independence","3008600023","DRUM","A"]
["Bross Construction, Asphalt - Jane","Bross Construction, Asphalt","Jane","3008600023","DRUM","A"]
["Bross Construction, Asphalt - Kingsville","Bross Construction, Asphalt","Kingsville","3008600023","DRUM","A"]
["Bross Construction, Asphalt - LaPlata","Bross Construction, Asphalt","LaPlata","3008600023","DRUM","A"]
["Bross Construction, Asphalt - Laquey","Bross Construction, Asphalt","Laquey","3008600023","DRUM","A"]
["Bross Construction, Asphalt - Lodi","Bross Construction, Asphalt","Lodi","3008600023","DRUM","A"]
["Bross Construction, Asphalt - Macon","Bross Construction, Asphalt","Macon","3008600023","DRUM","A"]
["Bross Construction, Asphalt - Marston","Bross Construction, Asphalt","Marston","3008600023","DRUM","A"]
["Bross Construction, Asphalt - Martin Marietta","Bross Construction, Asphalt","Martin Marietta","3008600023","DRUM","A"]
["Bross Construction, Asphalt - Millersburg","Bross Construction, Asphalt","Millersburg","3008600023","DRUM","A"]
["Bross Construction, Asphalt - Moberly","Bross Construction, Asphalt","Moberly","3008600023","DRUM","A"]
["Bross Construction, Asphalt - Moscow Mills","Bross Construction, Asphalt","Moscow Mills","3008600023","DRUM","A"]
["Bross Construction, Asphalt - Mound City","Bross Construction, Asphalt","Mound City","3008600023","DRUM","A"]
["Bross Construction, Asphalt - Mount Airy","Bross Construction, Asphalt","Mount Airy","3008600023","DRUM","A"]
["Bross Construction, Asphalt - Mt. Grove","Bross Construction, Asphalt","Mt. Grove","3008600023","DRUM","A"]
["Bross Construction, Asphalt - New London","Bross Construction, Asphalt","New London","3008600023","DRUM","A"]
["Bross Construction, Asphalt - Old Appleton","Bross Construction, Asphalt","Old Appleton","3008600023","DRUM","A"]
["Bross Construction, Asphalt - Old Monroe","Bross Construction, Asphalt","Old Monroe","3008600023","DRUM","A"]
["Bross Construction, Asphalt - Osceola","Bross Construction, Asphalt","Osceola","3008600023","DRUM","A"]
["Bross Construction, Asphalt - Overton","Bross Construction, Asphalt","Overton","3008600023","DRUM","A"]
["Bross Construction, Asphalt - Owensville","Bross Construction, Asphalt","Owensville","3008600023","DRUM","A"]
["Bross Construction, Asphalt - Palmyra","Bross Construction, Asphalt","Palmyra","3008600023","DRUM","A"]
["Bross Construction, Asphalt - Perry","Bross Construction, Asphalt","Perry","3008600023","DRUM","A"]
["Bross Construction, Asphalt - Rayville","Bross Construction, Asphalt","Rayville","3008600023","DRUM","A"]
["Bross Construction, Asphalt - Richmond","Bross Construction, Asphalt","Richmond","3008600023","DRUM","A"]
["Bross Construction, Asphalt - Rt E & I-55","Bross Construction, Asphalt","Rt E & I-55","3008600023","DRUM","A"]
[{"$f":"B137&\" - \"&C137","v":"Bross Construction, Asphalt - Rte 210/291"},"Bross Construction, Asphalt","Rte 210/291","3008600023","DRUM","A"]
["Bross Construction, Asphalt - Scott City","Bross Construction, Asphalt","Scott City","3008600023","DRUM","A"]
["Bross Construction, Asphalt - Sedalia","Bross Construction, Asphalt","Sedalia","3008600023","DRUM","A"]
["Bross Construction, Asphalt - Shelbina","Bross Construction, Asphalt","Shelbina","3008600023","DRUM","A"]
["Bross Construction, Asphalt - Taylor","Bross Construction, Asphalt","Taylor","3008600023","DRUM","A"]
["Bross Construction, Asphalt - Van Buren","Bross Construction, Asphalt","Van Buren","3008600023","DRUM","A"]
["Bross Construction, Asphalt - Warrensburg","Bross Construction, Asphalt","Warrensburg","3008600023","DRUM","A"]
["Bross Construction, Asphalt - Warsaw","Bross Construction, Asphalt","Warsaw","3008600023","DRUM","A"]
["Bross Construction, Asphalt - Wayland","Bross Construction, Asphalt","Wayland","3008600023","DRUM","A"]
["Bross Construction, Asphalt - Wheatland","Bross Construction, Asphalt","Wheatland","3008600023","DRUM","A"]
["Bross Construction, Asphalt - Willow Springs","Bross Construction, Asphalt","Willow Springs","3008600023","DRUM","A"]
["Capital Materials LLC -  Kingsville","Capital Materials LLC"," Kingsville","3057101025",null,"A"]
["Capital Materials LLC - Adrian","Capital Materials LLC","Adrian","3057101025","DRUM","A"]
["Capital Materials LLC - Bagnell","Capital Materials LLC","Bagnell","3057101025","DRUM","A"]
["Capital Materials LLC - Bates City","Capital Materials LLC","Bates City","3057101025",null,"A"]
["Capital Materials LLC - Bolivar","Capital Materials LLC","Bolivar","3057101025",null,"A"]
["Capital Materials LLC - Boonville","Capital Materials LLC","Boonville","3057101025","DRUM","A"]
["Capital Materials LLC - Brookfield","Capital Materials LLC","Brookfield","3057101025","DRUM","A"]
["Capital Materials LLC - Carrollton","Capital Materials LLC","Carrollton","3057101025","DRUM","A"]
["Capital Materials LLC - Cleveland","Capital Materials LLC","Cleveland","3057101025",null,"A"]
["Capital Materials LLC - Cuba","Capital Materials LLC","Cuba","3057101025","DRUM","A"]
["Capital Materials LLC - Fairplay","Capital Materials LLC","Fairplay","3057101025",null,"A"]
["Capital Materials LLC - Holden","Capital Materials LLC","Holden","3057101025",null,"A"]
["Capital Materials LLC - Hollister","Capital Materials LLC","Hollister","3057101025",null,"A"]
["Capital Materials LLC - Jefferson City","Capital Materials LLC","Jefferson City","3057101025","DRUM","A"]
["Capital Materials LLC - Jerome","Capital Materials LLC","Jerome","3057101025","DRUM","A"]
["Capital Materials LLC - Kennett","Capital Materials LLC","Kennett","3057101025","DRUM","A"]
["Capital Materials LLC - Linn","Capital Materials LLC","Linn","3057101025","DRUM","A"]
["Capital Materials LLC - Linn Creek","Capital Materials LLC","Linn Creek","3057101025","DRUM","A"]
["Capital Materials LLC - Loose Creek","Capital Materials LLC","Loose Creek","3057101025",null,"A"]
["Capital Materials LLC - Macon","Capital Materials LLC","Macon","3057101025","DRUM","A"]
["Capital Materials LLC - Marshall","Capital Materials LLC","Marshall","3057101025","DRUM","A"]
["Capital Materials LLC - Millersburg","Capital Materials LLC","Millersburg","3057101025",null,"A"]
["Capital Materials LLC - Mt. Airy","Capital Materials LLC","Mt. Airy","3057101025","DRUM","A"]
["Capital Materials LLC - Ozark","Capital Materials LLC","Ozark","3057101025",null,"A"]
["Capital Materials LLC - Quinn Pit","Capital Materials LLC","Quinn Pit","3057101025","DRUM","A"]
["Capital Materials LLC - Reform","Capital Materials LLC","Reform","3057101025",null,"A"]
["Capital Materials LLC - Rocky Fork","Capital Materials LLC","Rocky Fork","3057101025","DRUM","A"]
["Capital Materials LLC - Rolla","Capital Materials LLC","Rolla","3057101025","DRUM","A"]
["Capital Materials LLC - Sedalia","Capital Materials LLC","Sedalia","3057101025","DRUM","A"]
["Capital Materials LLC - St. Mary","Capital Materials LLC","St. Mary","3057101025",null,"A"]
["Capital Materials LLC - Sweet Springs","Capital Materials LLC","Sweet Springs","3057101025",null,"A"]
["Capital Materials LLC - Tightwad","Capital Materials LLC","Tightwad","3057101025",null,"A"]
["Capital Materials LLC - Tipton","Capital Materials LLC","Tipton","3057101025",null,"A"]
["Capital Materials LLC - Warrensburg","Capital Materials LLC","Warrensburg","3057101025","DRUM","A"]
["Capital Materials LLC - Warsaw","Capital Materials LLC","Warsaw","3057101025",null,"A"]
["Christensen Asphalt Plant - Millersburg","Christensen Asphalt Plant","Millersburg","3402400125","DRUM","A"]
["Delta Asphalt - Cape Girardeau","Delta Asphalt","Cape Girardeau","3012400020","BATC","A"]
["Delta Asphalt - Caruthersville","Delta Asphalt","Caruthersville","3012400020","DRUM","A"]
["Delta Asphalt - Dexter","Delta Asphalt","Dexter","3012400020","DRUM","A"]
["Delta Asphalt - Dexter - 807","Delta Asphalt","Dexter - 807","3012400020","DRUM","A"]
["Delta Asphalt - Hayti","Delta Asphalt","Hayti","3012400020","DRUM","A"]
["Delta Asphalt - Luxora, AR","Delta Asphalt","Luxora, AR","3012400020","DRUM","A"]
["Delta Asphalt - Marston","Delta Asphalt","Marston","3012400020","DRUM","A"]
["Delta Asphalt - New Madrid","Delta Asphalt","New Madrid","3012400020","BATC","A"]
["Delta Asphalt - Paragould, AR","Delta Asphalt","Paragould, AR","3012400020","BATC","A"]
["Delta Asphalt - Poplar Bluff","Delta Asphalt","Poplar Bluff","3012400020","BATC","A"]
["Delta Asphalt - Sikeston","Delta Asphalt","Sikeston","3012400020","DRUM","A"]
["Diamond Construction - Asphalt - Marblehead, IL","Diamond Construction - Asphalt","Marblehead, IL","3156500213","DRUM","A"]
["Diamond Construction - Asphalt - Quincy, IL","Diamond Construction - Asphalt","Quincy, IL","3156500213","BATC","A"]
["Emery Sapp Asphalt plants - Amazonia","Emery Sapp Asphalt plants","Amazonia","3213000027","BATC","A"]
["Emery Sapp Asphalt plants - Aquila","Emery Sapp Asphalt plants","Aquila","3213000027","DRUM","A"]
["Emery Sapp Asphalt plants - Bethany","Emery Sapp Asphalt plants","Bethany","3213000027","BATC","A"]
["Emery Sapp Asphalt plants - Blue Mound","Emery Sapp Asphalt plants","Blue Mound","3213000027",null,"A"]
[{"$f":"B201&\" - \"&C201","v":"Emery Sapp Asphalt plants - Branson"},"Emery Sapp Asphalt plants","Branson","3213000027","BATC","A"]
["Emery Sapp Asphalt plants - Brookfield","Emery Sapp Asphalt plants","Brookfield","3213000027","DRUM","A"]
["Emery Sapp Asphalt plants - Gallatin","Emery Sapp Asphalt plants","Gallatin","3213000027",null,"A"]
["Emery Sapp Asphalt plants - Gravette, AR","Emery Sapp Asphalt plants","Gravette, AR","3213000027",null,"A"]
["Emery Sapp Asphalt plants - Higginsville","Emery Sapp Asphalt plants","Higginsville","3213000027",null,"A"]
["Emery Sapp Asphalt plants - Holden","Emery Sapp Asphalt plants","Holden","3213000027",null,"A"]
["Emery Sapp Asphalt plants - Hughesville","Emery Sapp Asphalt plants","Hughesville","3213000027","BATC","A"]
["Emery Sapp Asphalt plants - Huntington","Emery Sapp Asphalt plants","Huntington","3213000027",null,"A"]
["Emery Sapp Asphalt plants - Joplin","Emery Sapp Asphalt plants","Joplin","3213000027","BATC","A"]
["Emery Sapp Asphalt plants - Kingsville","Emery Sapp Asphalt plants","Kingsville","3213000027",null,"A"]
["Emery Sapp Asphalt plants - Laddonia","Emery Sapp Asphalt plants","Laddonia","3213000027",null,"A"]
["Emery Sapp Asphalt plants - Macon","Emery Sapp Asphalt plants","Macon","3213000027",null,"A"]
["Emery Sapp Asphalt plants - Marston","Emery Sapp Asphalt plants","Marston","3213000027",null,"A"]
["Emery Sapp Asphalt plants - Mound City","Emery Sapp Asphalt plants","Mound City","3213000027",null,"A"]
["Emery Sapp Asphalt plants - Palmyra","Emery Sapp Asphalt plants","Palmyra","3213000027","DRUM","A"]
["Emery Sapp Asphalt plants - Paris","Emery Sapp Asphalt plants","Paris","3213000027",null,"A"]
["Emery Sapp Asphalt plants - Perryville","Emery Sapp Asphalt plants","Perryville","3213000027",null,"A"]
["Emery Sapp Asphalt plants - Saverton","Emery Sapp Asphalt plants","Saverton","3213000027",null,"A"]
["Emery Sapp Asphalt plants - Scott City","Emery Sapp Asphalt plants","Scott City","3213000027","DRUM","A"]
["Emery Sapp Asphalt plants - Sedalia","Emery Sapp Asphalt plants","Sedalia","3213000027",null,"A"]
["Emery Sapp Asphalt plants - Shelbina","Emery Sapp Asphalt plants","Shelbina","3213000027",null,"A"]
["Emery Sapp Asphalt plants - Sikeston","Emery Sapp Asphalt plants","Sikeston","3213000027",null,"A"]
["Emery Sapp Asphalt plants - Springfield","Emery Sapp Asphalt plants","Springfield","3213000027","DRUM","A"]
["Emery Sapp Asphalt plants - St. Mary","Emery Sapp Asphalt plants","St. Mary","3213000027",null,"A"]
["Emery Sapp Asphalt plants - Tracy","Emery Sapp Asphalt plants","Tracy","3213000027",null,"A"]
["Emery Sapp Asphalt plants - Watson","Emery Sapp Asphalt plants","Watson","3213000027",null,"A"]
["Emery Sapp Asphalt plants - Westphalia","Emery Sapp Asphalt plants","Westphalia","3213000027",null,"A"]
["Fahey Constr. - Asphalt Plants - Kansas City","Fahey Constr. - Asphalt Plants","Kansas City","3056600024","DRUM","A"]
["Fruitland Asphalt, LLC - Fruitland","Fruitland Asphalt, LLC","Fruitland","3918900020",null,"A"]
["Fruitland Asphalt, LLC - Jackson","Fruitland Asphalt, LLC","Jackson","3918900020","DRUM","A"]
["G & M Asphalt - Troy","G & M Asphalt","Troy","3017000023","DRUM","A"]
["Herzog Asphalt - Amazonia","Herzog Asphalt","Amazonia","3020400021","DRUM","A"]
["Herzog Asphalt - Bethany","Herzog Asphalt","Bethany","3020400021","DRUM","A"]
["Herzog Asphalt - Blue Mound","Herzog Asphalt","Blue Mound","3020400021","DRUM","A"]
["Herzog Asphalt - Elwood Asphalt","Herzog Asphalt","Elwood Asphalt","3020400021","DRUM","A"]
["Herzog Asphalt - Gallatin","Herzog Asphalt","Gallatin","3020400021","DRUM","A"]
["Herzog Asphalt - Maitland","Herzog Asphalt","Maitland","3020400021","DRUM","A"]
["Herzog Asphalt - Maryville","Herzog Asphalt","Maryville","3020400021","DRUM","A"]
["Herzog Asphalt - Nettleton","Herzog Asphalt","Nettleton","3020400021","DRUM","A"]
["Herzog Asphalt - Princeton","Herzog Asphalt","Princeton","3020400021","DRUM","A"]
["Herzog Asphalt - Ravenwood","Herzog Asphalt","Ravenwood","3020400021","DRUM","A"]
["Herzog Asphalt - Savannah","Herzog Asphalt","Savannah","3020400021","DRUM","A"]
["Herzog Asphalt - Trenton","Herzog Asphalt","Trenton","3020400021","DRUM","A"]
["Higgins Asphalt & Paving - Loose Creek","Higgins Asphalt & Paving","Loose Creek","3197300125","DRUM","A"]
["Hutchens Asphalt plants - Bella Vista","Hutchens Asphalt plants","Bella Vista","3021500027","DRUM","A"]
["Hutchens Asphalt plants - Gravette","Hutchens Asphalt plants","Gravette","3021500027","DRUM","A"]
["Hutchens Asphalt plants - Joplin","Hutchens Asphalt plants","Joplin","3021500027",null,"A"]
["Hutchens Asphalt plants - Purdy","Hutchens Asphalt plants","Purdy","3021500027","DRUM","A"]
["Hutchens Asphalt plants - Shell Knob","Hutchens Asphalt plants","Shell Knob","3021500027","DRUM","A"]
["Ideker Asphalt - Adrian","Ideker Asphalt","Adrian","3298500021","DRUM","A"]
["Ideker Asphalt - Courtney Rd","Ideker Asphalt","Courtney Rd","3298500021",null,"A"]
["Ideker Asphalt - Grandview","Ideker Asphalt","Grandview","3298500021","DRUM","A"]
["Ideker Asphalt - KCI","Ideker Asphalt","KCI","3298500021","DRUM","A"]
["Ideker Asphalt - Lake Lanawana","Ideker Asphalt","Lake Lanawana","3298500021","DRUM","A"]
["Ideker Asphalt - Mosby","Ideker Asphalt","Mosby","3298500021","DRUM","A"]
["Ideker Asphalt - Watson","Ideker Asphalt","Watson","3298500021","DRUM","A"]
["Jokerst Paving & Contracting, Inc. - Bonne Terre","Jokerst Paving & Contracting, Inc.","Bonne Terre","3281200026","DRUM","A"]
["Journagan Asphalt - Aldrich","Journagan Asphalt","Aldrich","3027400028","DRUM","A"]
["Journagan Asphalt - Buffalo","Journagan Asphalt","Buffalo","3027400028","DRUM","A"]
["Journagan Asphalt - Butler","Journagan Asphalt","Butler","3027400028","DRUM","A"]
["Journagan Asphalt - Dever","Journagan Asphalt","Dever","3027400028","DRUM","A"]
["Journagan Asphalt - Greenfield","Journagan Asphalt","Greenfield","3027400028","DRUM","A"]
["Journagan Asphalt - Hilda","Journagan Asphalt","Hilda","3027400028","DRUM","A"]
["Journagan Asphalt - Hollister","Journagan Asphalt","Hollister","3027400028","DRUM","A"]
[{"$f":"B265&\" - \"&C265","v":"Journagan Asphalt - Jane"},"Journagan Asphalt","Jane","3027400028","DRUM","A"]
["Journagan Asphalt - Jasper","Journagan Asphalt","Jasper","3027400028","DRUM","A"]
["Journagan Asphalt - Macks Creek","Journagan Asphalt","Macks Creek","3027400028","DRUM","A"]
["Journagan Asphalt - Madry","Journagan Asphalt","Madry","3027400028","DRUM","A"]
["Journagan Asphalt - Marshfield","Journagan Asphalt","Marshfield","3027400028","DRUM","A"]
["Journagan Asphalt - McCracken","Journagan Asphalt","McCracken","3027400028","DRUM","A"]
["Journagan Asphalt - Montevallo","Journagan Asphalt","Montevallo","3027400028","DRUM","A"]
["Journagan Asphalt - Nemo","Journagan Asphalt","Nemo","3027400028","DRUM","A"]
["Journagan Asphalt - Neosho","Journagan Asphalt","Neosho","3027400028","DRUM","A"]
["Journagan Asphalt - Ozark","Journagan Asphalt","Ozark","3027400028","DRUM","A"]
["Journagan Asphalt - Purdy","Journagan Asphalt","Purdy","3027400028","DRUM","A"]
["Journagan Asphalt - Reeds","Journagan Asphalt","Reeds","3027400028","DRUM","A"]
["Journagan Asphalt - Spencer","Journagan Asphalt","Spencer","3027400028","DRUM","A"]
["Journagan Asphalt - Stockton","Journagan Asphalt","Stockton","3027400028","DRUM","A"]
["Journagan Asphalt - Thayer","Journagan Asphalt","Thayer","3027400028","DRUM","A"]
["Journagan Asphalt - Wheatland","Journagan Asphalt","Wheatland","3027400028","DRUM","A"]
["Journagan Asphalt - Willow Springs","Journagan Asphalt","Willow Springs","3027400028","DRUM","A"]
["Lead Belt Asphalt - Desloge","Lead Belt Asphalt","Desloge","3027000020","DRUM","A"]
["Lead Belt Asphalt - Elvins","Lead Belt Asphalt","Elvins","3027000020","DRUM","A"]
["Magruder Paving, LLC - Algoa","Magruder Paving, LLC","Algoa","3029700023","DRUM","A"]
["Magruder Paving, LLC - Arab","Magruder Paving, LLC","Arab","3029700023","DRUM","A"]
["Magruder Paving, LLC - Auxvasse","Magruder Paving, LLC","Auxvasse","3029700023","DRUM","A"]
["Magruder Paving, LLC - Barnhart","Magruder Paving, LLC","Barnhart","3029700023","DRUM","A"]
["Magruder Paving, LLC - Belleview","Magruder Paving, LLC","Belleview","3029700023",null,"A"]
["Magruder Paving, LLC - Big Spring","Magruder Paving, LLC","Big Spring","3029700023","DRUM","A"]
["Magruder Paving, LLC - BonneTerre","Magruder Paving, LLC","BonneTerre","3029700023","DRUM","A"]
["Magruder Paving, LLC - Bourbon","Magruder Paving, LLC","Bourbon","3029700023","BATC","A"]
["Magruder Paving, LLC - Brickey Stone","Magruder Paving, LLC","Brickey Stone","3029700023","DRUM","A"]
["Magruder Paving, LLC - Butler","Magruder Paving, LLC","Butler","3029700023",null,"A"]
["Magruder Paving, LLC - Camdenton","Magruder Paving, LLC","Camdenton","3029700023","DRUM","A"]
["Magruder Paving, LLC - Cameron","Magruder Paving, LLC","Cameron","3029700023","DRUM","A"]
["Magruder Paving, LLC - Cleveland","Magruder Paving, LLC","Cleveland","3029700023",null,"A"]
["Magruder Paving, LLC - Clinton","Magruder Paving, LLC","Clinton","3029700023","DRUM","A"]
["Magruder Paving, LLC - Defiance","Magruder Paving, LLC","Defiance","3029700023","DRUM","A"]
["Magruder Paving, LLC - Desloge","Magruder Paving, LLC","Desloge","3029700023","DRUM","A"]
["Magruder Paving, LLC - Dexter","Magruder Paving, LLC","Dexter","3029700023","DRUM","A"]
["Magruder Paving, LLC - Eldon","Magruder Paving, LLC","Eldon","3029700023","BATC","A"]
["Magruder Paving, LLC - Festus","Magruder Paving, LLC","Festus","3029700023","DRUM","A"]
["Magruder Paving, LLC - Fisk","Magruder Paving, LLC","Fisk","3029700023","DRUM","A"]
["Magruder Paving, LLC - Gravois Mills","Magruder Paving, LLC","Gravois Mills","3029700023","DRUM","A"]
["Magruder Paving, LLC - Greenville","Magruder Paving, LLC","Greenville","3029700023","BATC","A"]
["Magruder Paving, LLC - Harrisonville","Magruder Paving, LLC","Harrisonville","3029700023",null,"A"]
["Magruder Paving, LLC - Havin Materials","Magruder Paving, LLC","Havin Materials","3029700023","DRUM","A"]
["Magruder Paving, LLC - Hayti","Magruder Paving, LLC","Hayti","3029700023","DRUM","A"]
["Magruder Paving, LLC - High Hill","Magruder Paving, LLC","High Hill","3029700023","DRUM","A"]
["Magruder Paving, LLC - Holt Summit","Magruder Paving, LLC","Holt Summit","3029700023","DRUM","A"]
["Magruder Paving, LLC - Jefferson City","Magruder Paving, LLC","Jefferson City","3029700023",null,"A"]
["Magruder Paving, LLC - Knob Lick","Magruder Paving, LLC","Knob Lick","3029700023","DRUM","A"]
["Magruder Paving, LLC - Lincoln","Magruder Paving, LLC","Lincoln","3029700023","DRUM","A"]
["Magruder Paving, LLC - Linn","Magruder Paving, LLC","Linn","3029700023","DRUM","A"]
["Magruder Paving, LLC - LinnCreek","Magruder Paving, LLC","LinnCreek","3029700023","DRUM","A"]
["Magruder Paving, LLC - Lodi","Magruder Paving, LLC","Lodi","3029700023","DRUM","A"]
["Magruder Paving, LLC - Loose Creek","Magruder Paving, LLC","Loose Creek","3029700023",null,"A"]
["Magruder Paving, LLC - Malden","Magruder Paving, LLC","Malden","3029700023","DRUM","A"]
["Magruder Paving, LLC - Milan","Magruder Paving, LLC","Milan","3029700023",null,"A"]
["Magruder Paving, LLC - Nettleton","Magruder Paving, LLC","Nettleton","3029700023",null,"A"]
["Magruder Paving, LLC - New London","Magruder Paving, LLC","New London","3029700023","DRUM","A"]
["Magruder Paving, LLC - Old Monroe","Magruder Paving, LLC","Old Monroe","3029700023","BATC","A"]
["Magruder Paving, LLC - Otterville","Magruder Paving, LLC","Otterville","3029700023",null,"A"]
["Magruder Paving, LLC - Palmyra","Magruder Paving, LLC","Palmyra","3029700023","DRUM","A"]
["Magruder Paving, LLC - Paris","Magruder Paving, LLC","Paris","3029700023",null,"A"]
["Magruder Paving, LLC - Patton","Magruder Paving, LLC","Patton","3029700023","DRUM","A"]
["Magruder Paving, LLC - Perryville","Magruder Paving, LLC","Perryville","3029700023",null,"A"]
["Magruder Paving, LLC - Portageville","Magruder Paving, LLC","Portageville","3029700023","DRUM","A"]
[{"$f":"B329&\" - \"&C329","v":"Magruder Paving, LLC - Reger"},"Magruder Paving, LLC","Reger","3029700023","DRUM","A"]
["Magruder Paving, LLC - Rolla","Magruder Paving, LLC","Rolla","3029700023","DRUM","A"]
["Magruder Paving, LLC - Salem","Magruder Paving, LLC","Salem","3029700023","DRUM","A"]
["Magruder Paving, LLC - Sedalia","Magruder Paving, LLC","Sedalia","3029700023","DRUM","A"]
["Magruder Paving, LLC - Shelbina","Magruder Paving, LLC","Shelbina","3029700023","BATC","A"]
["Magruder Paving, LLC - Sikeston","Magruder Paving, LLC","Sikeston","3029700023","DRUM","A"]
["Magruder Paving, LLC - Silex","Magruder Paving, LLC","Silex","3029700023",null,"A"]
["Magruder Paving, LLC - St. Charles","Magruder Paving, LLC","St. Charles","3029700023","DRUM","A"]
["Magruder Paving, LLC - St. Louis","Magruder Paving, LLC","St. Louis","3029700023",null,"A"]
["Magruder Paving, LLC - St. Mary","Magruder Paving, LLC","St. Mary","3029700023","DRUM","A"]
["Magruder Paving, LLC - St. Peters","Magruder Paving, LLC","St. Peters","3029700023","DRUM","A"]
["Magruder Paving, LLC - Stover","Magruder Paving, LLC","Stover","3029700023","DRUM","A"]
["Magruder Paving, LLC - Trenton","Magruder Paving, LLC","Trenton","3029700023","DRUM","A"]
["Magruder Paving, LLC - Troy","Magruder Paving, LLC","Troy","3029700023","BATC","A"]
["Magruder Paving, LLC - Union","Magruder Paving, LLC","Union","3029700023","DRUM","A"]
["Mineral Area Asphalt, Bonne Terre - Bonne Terre","Mineral Area Asphalt, Bonne Terre","Bonne Terre","3271900020","DRUM","A"]
["N.B. West Asphalt - Bourbon","N.B. West Asphalt","Bourbon","3116900026","BATC","A"]
["N.B. West Asphalt - Cuba","N.B. West Asphalt","Cuba","3116900026","DRUM","A"]
["N.B. West Asphalt - Farmington","N.B. West Asphalt","Farmington","3116900026",null,"A"]
["N.B. West Asphalt - House Springs","N.B. West Asphalt","House Springs","3116900026","DRUM","A"]
["N.B. West Asphalt - Pacific","N.B. West Asphalt","Pacific","3116900026","DRUM","A"]
["N.B. West Asphalt - Rolla","N.B. West Asphalt","Rolla","3116900026","DRUM","A"]
["N.B. West Asphalt - St. Clair","N.B. West Asphalt","St. Clair","3116900026",null,"A"]
["N.B. West Asphalt - St. James","N.B. West Asphalt","St. James","3116900026","BATC","A"]
["New Frontier Asphalt plants - Antire","New Frontier Asphalt plants","Antire","3016400026","DRUM","A"]
["New Frontier Asphalt plants - Florrisant","New Frontier Asphalt plants","Florrisant","3016400026","DRUM","A"]
["New Frontier Asphalt plants - Kingshighway","New Frontier Asphalt plants","Kingshighway","3016400026","DRUM","A"]
["New Frontier Asphalt plants - Koch","New Frontier Asphalt plants","Koch","3016400026","DRUM","A"]
["New Frontier Asphalt plants - Moscow Mills","New Frontier Asphalt plants","Moscow Mills","3016400026","DRUM","A"]
["New Frontier Asphalt plants - North (New)","New Frontier Asphalt plants","North (New)","3016400026","BATC","A"]
["New Frontier Asphalt plants - North (Old)","New Frontier Asphalt plants","North (Old)","3016400026","BATC","A"]
["New Frontier Asphalt plants - O Fallon","New Frontier Asphalt plants","O Fallon","3016400026","BATC","A"]
["New Frontier Asphalt plants - South (old)","New Frontier Asphalt plants","South (old)","3016400026","BATC","A"]
["New Frontier Asphalt plants - St. Charles","New Frontier Asphalt plants","St. Charles","3016400026","BATC","A"]
["North Central Arkansas Quarry - Mountain Home (AR)","North Central Arkansas Quarry","Mountain Home (AR)","3435600329","DRUM","A"]
["Pace Construction, Asphalt - Arcadia","Pace Construction, Asphalt","Arcadia","3035900026","MOBI","A"]
["Pace Construction, Asphalt - Bonne Terre","Pace Construction, Asphalt","Bonne Terre","3035900026","MOBI","A"]
["Pace Construction, Asphalt - Couch","Pace Construction, Asphalt","Couch","3035900026",null,"A"]
["Pace Construction, Asphalt - Danville2","Pace Construction, Asphalt","Danville2","3035900026","DRUM","A"]
["Pace Construction, Asphalt - Edgar Springs","Pace Construction, Asphalt","Edgar Springs","3035900026","DRUM","A"]
["Pace Construction, Asphalt - Houston","Pace Construction, Asphalt","Houston","3035900026","DRUM","A"]
["Pace Construction, Asphalt - Jackson","Pace Construction, Asphalt","Jackson","3035900026","DRUM","A"]
["Pace Construction, Asphalt - Jackson-Fruitland","Pace Construction, Asphalt","Jackson-Fruitland","3035900026",null,"A"]
["Pace Construction, Asphalt - Kennett","Pace Construction, Asphalt","Kennett","3035900026",null,"A"]
["Pace Construction, Asphalt - Linn","Pace Construction, Asphalt","Linn","3035900026",null,"A"]
["Pace Construction, Asphalt - New Melle","Pace Construction, Asphalt","New Melle","3035900026",null,"A"]
["Pace Construction, Asphalt - Potosi","Pace Construction, Asphalt","Potosi","3035900026","DRUM","A"]
["Pace Construction, Asphalt - St. Mary","Pace Construction, Asphalt","St. Mary","3035900026",null,"A"]
["Pace Construction, Asphalt - Van Buren","Pace Construction, Asphalt","Van Buren","3035900026","DRUM","A"]
["Pace Construction, Asphalt - West Plains","Pace Construction, Asphalt","West Plains","3035900026","DRUM","A"]
["Pace Construction, Asphalt - Willow Springs","Pace Construction, Asphalt","Willow Springs","3035900026","DRUM","A"]
["Producer Supplier not designated. - Not Designated","Producer Supplier not designated.","Not Designated","300000000X","BATC","A"]
["Robertson Asphalt - Poplar Bluff","Robertson Asphalt","Poplar Bluff","3211800220","DRUM","A"]
["Simpson Construction Materials, Asphalt - ValleyPark","Simpson Construction Materials, Asphalt","ValleyPark","3042400326","DRUM","A"]
["Southeast Missouri Stone (SEMO) - 15-5A","Southeast Missouri Stone (SEMO)","15-5A","3042800110","FOMR","A"]
["Superior Bowen Asphalt - 38th St North","Superior Bowen Asphalt","38th St North","3056900024","DRUM","A"]
["Superior Bowen Asphalt - Bowen-Lee s Sum","Superior Bowen Asphalt","Bowen-Lee s Sum","3056900024","DRUM","A"]
["Superior Bowen Asphalt - Cedar Creek","Superior Bowen Asphalt","Cedar Creek","3056900024","DRUM","A"]
["Superior Bowen Asphalt - Ferrelview","Superior Bowen Asphalt","Ferrelview","3056900024","DRUM","A"]
["Superior Bowen Asphalt - Hickman Mills","Superior Bowen Asphalt","Hickman Mills","3056900024","DRUM","A"]
["Superior Bowen Asphalt - KCI","Superior Bowen Asphalt","KCI","3056900024","DRUM","A"]
["Superior Bowen Asphalt - Manchester","Superior Bowen Asphalt","Manchester","3056900024","DRUM","A"]
["W. L. Miller Asphalt - Edina","W. L. Miller Asphalt","Edina","3048700023","DRUM","A"]
["W. L. Miller Asphalt - Hamilton","W. L. Miller Asphalt","Hamilton","3048700023","BATC","A"]
[{"$f":"B393&\" - \"&C393","v":"W. L. Miller Asphalt - Kahoka"},"W. L. Miller Asphalt","Kahoka","3048700023","DRUM","A"]
["W. L. Miller Asphalt - Kirksville","W. L. Miller Asphalt","Kirksville","3048700023","DRUM","A"]
["W. L. Miller Asphalt - MonroeCity","W. L. Miller Asphalt","MonroeCity","3048700023","DRUM","A"]
["W. L. Miller Asphalt - Paris","W. L. Miller Asphalt","Paris","3048700023","DRUM","A"]
["W. L. Miller Asphalt - Princeton","W. L. Miller Asphalt","Princeton","3048700023","DRUM","A"]
["W. L. Miller Asphalt - Wayland","W. L. Miller Asphalt","Wayland","3048700023","DRUM","A"]
["Willard Constr. Asphalt Plants - Sleeper","Willard Constr. Asphalt Plants","Sleeper","3050100028","DRUM","A"]
["Willard Constr. Asphalt Plants - St. Roberts","Willard Constr. Asphalt Plants","St. Roberts","3050100028","DRUM","A"]